Workbook

Sheet 대덕구인구현황
A1: 대전광역시 대덕구 주민등록 인구현황
AA2: [ 2022.10.31.기준 ]
A3: 동 별 | B3: 인 구 및 세 대 수 | I3: 10대 이하 (0세 ~ 19세) | L3: 20대 | O3: 30대 | R3: 40대 | U3: 50대 | X3: 60대 | AA3: 70대 이상 | AD3: 65세 이상
B4: 계 | C4: 전월계 | D4: 증감 | E4: 증감비 (%) | F4: 남 | G4: 여 | H4: 세대수 | I4: 계 | J4: 전월계 | K4: 증감 | L4: 계 | M4: 전월계 | N4: 증감 | O4: 계 | P4: 전월계 | Q4: 증감 | R4: 계 | S4: 전월계 | T4: 증감 | U4: 계 | V4: 전월계 | W4: 증감 | X4: 계 | Y4: 전월계 | Z4: 증감 | AA4: 계 | AB4: 전월계 | AC4: 증감 | AD4: 계 | AE4: 전월계 | AF4: 증감
A5: 계 | B5: =SUM(F5:G5) -> 173465 | C5: =SUM(C6:C17) -> 173592 | D5: =SUM(D6:D17) -> -127 | E5: =(D5/B5)*100 -> -0.07321361658 | F5: =SUM(F6:F17) -> 88127 | G5: 85338 | H5: 80472 | I5: 25291 | J5: 25360 | K5: -69 | L5: =SUM(L6:L17) -> 23037 | M5: 23180 | N5: -143 | O5: 19808 | P5: 19816 | Q5: -8 | R5: 25289 | S5: 25371 | T5: -82 | U5: =SUM(U6:U17) -> 32844 | V5: 32918 | W5: -74 | X5: 27446 | Y5: 27296 | Z5: 150 | AA5: 19750 | AB5: 19651 | AC5: 99 | AD5: =SUM(AD6:AD17) -> 31011 | AE5: =SUM(AE6:AE17) -> 30847 | AF5: =SUM(AF6:AF17) -> 164
A6: 오 정 동 | B6: 14222 | C6: 14230 | D6: =B6-C6 -> -8 | E6: -0.05625087892 | F6: 7489 | G6: 6733 | H6: 7594 | I6: 1486 | J6: 1497 | K6: =I6-J6 -> -11 | L6: 2217 | M6: 2210 | N6: =L6-M6 -> 7 | O6: 1446 | P6: 1460 | Q6: =O6-P6 -> -14 | R6: 1784 | S6: 1799 | T6: =R6-S6 -> -15 | U6: 2548 | V6: 2553 | W6: =U6-V6 -> -5 | X6: 2707 | Y6: 2693 | Z6: =X6-Y6 -> 14 | AA6: 2034 | AB6: 2018 | AC6: =AA6-AB6 -> 16 | AD6: 3188 | AE6: 3171 | AF6: =AD6-AE6 -> 17
A7: 대 화 동 | B7: 6738 | C7: 6752 | D7: -14 | E7: -0.2077767884 | F7: 3538 | G7: 3200 | H7: 3454 | I7: 676 | J7: 676 | K7: =I7-J7 -> 0 | L7: 753 | M7: 753 | N7: =L7-M7 -> 0 | O7: 728 | P7: 730 | Q7: =O7-P7 -> -2 | R7: 986 | S7: 994 | T7: =R7-S7 -> -8 | U7: 1256 | V7: 1268 | W7: =U7-V7 -> -12 | X7: 1289 | Y7: 1295 | Z7: =X7-Y7 -> -6 | AA7: 1050 | AB7: 1036 | AC7: 14 | AD7: 1639 | AE7: 1629 | AF7: 10
A8: 회 덕 동 | B8: 11859 | C8: 11899 | D8: -40 | E8: -0.337296568 | F8: 6045 | G8: 5814 | H8: 5547 | I8: 1430 | J8: 1452 | K8: -22 | L8: 1269 | M8: 1289 | N8: -20 | O8: 1138 | P8: 1129 | Q8: 9 | R8: 1538 | S8: 1561 | T8: -23 | U8: 2232 | V8: 2236 | W8: -4 | X8: 2344 | Y8: 2331 | Z8: 13 | AA8: 1908 | AB8: 1901 | AC8: 7 | AD8: 2926 | AE8: 2909 | AF8: 17
A9: 비 래 동 | B9: 15835 | C9: 15831 | D9: 4 | E9: 0.02526049889 | F9: 7860 | G9: 7975 | H9: 7024 | I9: 2265 | J9: 2275 | K9: -10 | L9: 2024 | M9: 2036 | N9: -12 | O9: 1515 | P9: 1498 | Q9: 17 | R9: 2273 | S9: 2283 | T9: -10 | U9: 3112 | V9: 3115 | W9: -3 | X9: 2705 | Y9: 2676 | Z9: 29 | AA9: 1941 | AB9: 1948 | AC9: -7 | AD9: 3112 | AE9: 3103 | AF9: 9
A10: 송 촌 동 | B10: 26723 | C10: 26665 | D10: 58 | E10: 0.2170414998 | F10: 13208 | G10: 13515 | H10: 10390 | I10: 5248 | J10: 5237 | K10: 11 | L10: 3841 | M10: 3848 | N10: -7 | O10: 2542 | P10: 2527 | Q10: 15 | R10: 4430 | S10: 4438 | T10: -8 | U10: 5610 | V10: 5616 | W10: -6 | X10: 3131 | Y10: 3097 | Z10: 34 | AA10: 1921 | AB10: 1902 | AC10: 19 | AD10: 3037 | AE10: 3010 | AF10: 27
A11: 중 리 동 | B11: 19239 | C11: 19290 | D11: -51 | E11: -0.265086543 | F11: 9984 | G11: 9255 | H11: 10430 | I11: 2263 | J11: 2293 | K11: -30 | L11: 2902 | M11: 2915 | N11: -13 | O11: 2175 | P11: 2185 | Q11: -10 | R11: 2794 | S11: 2803 | T11: -9 | U11: 3670 | V11: 3688 | W11: -18 | X11: 3256 | Y11: 3231 | Z11: 25 | AA11: 2179 | AB11: 2175 | AC11: 4 | AD11: 3522 | AE11: 3502 | AF11: 20
A12: 법 1 동 | B12: 12779 | C12: 12864 | D12: -85 | E12: -0.6651537679 | F12: 5994 | G12: 6785 | H12: 5938 | I12: 1790 | J12: 1809 | K12: -19 | L12: 1515 | M12: 1550 | N12: -35 | O12: 1547 | P12: 1557 | Q12: -10 | R12: 1657 | S12: 1673 | T12: -16 | U12: 2427 | V12: 2441 | W12: -14 | X12: 2140 | Y12: 2138 | Z12: 2 | AA12: 1703 | AB12: 1696 | AC12: 7 | AD12: 2616 | AE12: 2609 | AF12: 7
A13: 법 2 동 | B13: 15503 | C13: 15512 | D13: -9 | E13: -0.05805328001 | F13: 7560 | G13: 7943 | H13: 6811 | I13: 2148 | J13: 2143 | K13: 5 | L13: 1930 | M13: 1952 | N13: -22 | O13: 1394 | P13: 1393 | Q13: 1 | R13: 2073 | S13: 2072 | T13: 1 | U13: 3085 | V13: 3111 | W13: -26 | X13: 2889 | Y13: 2862 | Z13: 27 | AA13: 1984 | AB13: 1979 | AC13: 5 | AD13: 3133 | AE13: 3113 | AF13: 20
A14: 신 탄 진 | B14: 14589 | C14: 14588 | D14: 1 | E14: 0.006854479402 | F14: 7524 | G14: 7065 | H14: 6920 | I14: 1958 | J14: 1954 | K14: 4 | L14: 1859 | M14: 1876 | N14: -17 | O14: 2002 | P14: 2002 | Q14: 0 | R14: 1984 | S14: 1985 | T14: -1 | U14: 2670 | V14: 2662 | W14: 8 | X14: 2329 | Y14: 2331 | Z14: -2 | AA14: 1787 | AB14: 1778 | AC14: 9 | AD14: 2771 | AE14: 2765 | AF14: 6
A15: 석 봉 동 | B15: 16186 | C15: 16171 | D15: 15 | E15: 0.09267268009 | F15: 8277 | G15: 7909 | H15: 6512 | I15: 3398 | J15: 3388 | K15: 10 | L15: 1784 | M15: 1805 | N15: -21 | O15: 2682 | P15: 2692 | Q15: -10 | R15: 2710 | S15: 2694 | T15: 16 | U15: 2560 | V15: 2562 | W15: -2 | X15: 1928 | Y15: 1913 | Z15: 15 | AA15: 1124 | AB15: 1117 | AC15: 7 | AD15: 1842 | AE15: 1827 | AF15: 15
A16: 덕 암 동 | B16: 13400 | C16: 13416 | D16: -16 | E16: -0.1194029851 | F16: 7158 | G16: 6242 | H16: 6619 | I16: 1713 | J16: 1722 | K16: -9 | L16: 1969 | M16: 1977 | N16: -8 | O16: 1665 | P16: 1667 | Q16: -2 | R16: 1949 | S16: 1964 | T16: -15 | U16: 2545 | V16: 2537 | W16: 8 | X16: 1937 | Y16: 1942 | Z16: -5 | AA16: 1622 | AB16: 1607 | AC16: 15 | AD16: 2428 | AE16: 2415 | AF16: 13
A17: 목 상 동 | B17: 6392 | C17: 6374 | D17: 18 | E17: 0.2816020025 | F17: 3490 | G17: 2902 | H17: 3233 | I17: 916 | J17: 914 | K17: 2 | L17: 974 | M17: 969 | N17: 5 | O17: 974 | P17: 976 | Q17: -2 | R17: 1111 | S17: 1105 | T17: 6 | U17: 1129 | V17: 1129 | W17: 0 | X17: 791 | Y17: 787 | Z17: 4 | AA17: 497 | AB17: 494 | AC17: 3 | AD17: 797 | AE17: 794 | AF17: 3

Sheet 연령별인구현황(2022.10.)
B2: 연령별(만)인구현황(기관별)
B4: 행정기관 : 대전광역시 대덕구 | M4: 출력일자 : | N4: 2022.11.01
B5: 통계년월 : 2022년 10월 현재
B6: 연령 | D6: 대덕구 | G6: 오정동 | J6: 대화동 | M6: 회덕동 | P6: 비래동 | S6: 송촌동 | V6: 중리동 | Y6: 법1동 | AB6: 법2동 | AE6: 신탄진동 | AH6: 석봉동 | AK6: 덕암동 | AN6: 목상동
D7: 인구수 | E7: 구성비 | F7: 성비 | G7: 인구수 | H7: 구성비 | I7: 성비 | J7: 인구수 | K7: 구성비 | L7: 성비 | M7: 인구수 | N7: 구성비 | O7: 성비 | P7: 인구수 | Q7: 구성비 | R7: 성비 | S7: 인구수 | T7: 구성비 | U7: 성비 | V7: 인구수 | W7: 구성비 | X7: 성비 | Y7: 인구수 | Z7: 구성비 | AA7: 성비 | AB7: 인구수 | AC7: 구성비 | AD7: 성비 | AE7: 인구수 | AF7: 구성비 | AG7: 성비 | AH7: 인구수 | AI7: 구성비 | AJ7: 성비 | AK7: 인구수 | AL7: 구성비 | AM7: 성비 | AN7: 인구수 | AO7: 구성비 | AP7: 성비
B8: 합 계 | C8: 계 | D8: 173465 | E8: 100 | F8: 103.27 | G8: 14222 | H8: 100 | I8: 111.23 | J8: 6738 | K8: 100 | L8: 110.56 | M8: 11859 | N8: 100 | O8: 103.97 | P8: 15835 | Q8: 100 | R8: 98.56 | S8: 26723 | T8: 100 | U8: 97.73 | V8: 19239 | W8: 100 | X8: 107.88 | Y8: 12779 | Z8: 100 | AA8: 88.34 | AB8: 15503 | AC8: 100 | AD8: 95.18 | AE8: 14589 | AF8: 100 | AG8: 106.5 | AH8: 16186 | AI8: 100 | AJ8: 104.65 | AK8: 13400 | AL8: 100 | AM8: 114.67 | AN8: 6392 | AO8: 100 | AP8: 120.26
C9: 남 | D9: 88127 | E9: 100 | G9: 7489 | H9: 100 | J9: 3538 | K9: 100 | M9: 6045 | N9: 100 | P9: 7860 | Q9: 100 | S9: 13208 | T9: 100 | V9: 9984 | W9: 100 | Y9: 5994 | Z9: 100 | AB9: 7560 | AC9: 100 | AE9: 7524 | AF9: 100 | AH9: 8277 | AI9: 100 | AK9: 7158 | AL9: 100 | AN9: 3490 | AO9: 100
C10: 여 | D10: 85338 | E10: 100 | G10: 6733 | H10: 100 | J10: 3200 | K10: 100 | M10: 5814 | N10: 100 | P10: 7975 | Q10: 100 | S10: 13515 | T10: 100 | V10: 9255 | W10: 100 | Y10: 6785 | Z10: 100 | AB10: 7943 | AC10: 100 | AE10: 7065 | AF10: 100 | AH10: 7909 | AI10: 100 | AK10: 6242 | AL10: 100 | AN10: 2902 | AO10: 100
B11: 0세 | C11: 계 | D11: 806 | E11: 0.46 | F11: 102.51 | G11: 42 | H11: 0.3 | I11: 147.06 | J11: 19 | K11: 0.28 | L11: 171.43 | M11: 39 | N11: 0.33 | O11: 105.26 | P11: 54 | Q11: 0.34 | R11: 134.78 | S11: 110 | T11: 0.41 | U11: 80.33 | V11: 61 | W11: 0.32 | X11: 144 | Y11: 84 | Z11: 0.66 | AA11: 100 | AB11: 50 | AC11: 0.32 | AD11: 163.16 | AE11: 104 | AF11: 0.71 | AG11: 89.09 | AH11: 160 | AI11: 0.99 | AJ11: 73.91 | AK11: 51 | AL11: 0.38 | AM11: 121.74 | AN11: 32 | AO11: 0.5 | AP11: 113.33
C12: 남 | D12: 408 | E12: 0.46 | G12: 25 | H12: 0.33 | J12: 12 | K12: 0.34 | M12: 20 | N12: 0.33 | P12: 31 | Q12: 0.39 | S12: 49 | T12: 0.37 | V12: 36 | W12: 0.36 | Y12: 42 | Z12: 0.7 | AB12: 31 | AC12: 0.41 | AE12: 49 | AF12: 0.65 | AH12: 68 | AI12: 0.82 | AK12: 28 | AL12: 0.39 | AN12: 17 | AO12: 0.49
C13: 여 | D13: 398 | E13: 0.47 | G13: 17 | H13: 0.25 | J13: 7 | K13: 0.22 | M13: 19 | N13: 0.33 | P13: 23 | Q13: 0.29 | S13: 61 | T13: 0.45 | V13: 25 | W13: 0.27 | Y13: 42 | Z13: 0.62 | AB13: 19 | AC13: 0.24 | AE13: 55 | AF13: 0.78 | AH13: 92 | AI13: 1.16 | AK13: 23 | AL13: 0.37 | AN13: 15 | AO13: 0.52
B14: 1세 | C14: 계 | D14: 803 | E14: 0.46 | F14: 106.96 | G14: 50 | H14: 0.35 | I14: 108.33 | J14: 16 | K14: 0.24 | L14: 100 | M14: 42 | N14: 0.35 | O14: 68 | P14: 57 | Q14: 0.36 | R14: 119.23 | S14: 132 | T14: 0.49 | U14: 85.92 | V14: 68 | W14: 0.35 | X14: 126.67 | Y14: 87 | Z14: 0.68 | AA14: 123.08 | AB14: 50 | AC14: 0.32 | AD14: 177.78 | AE14: 83 | AF14: 0.57 | AG14: 88.64 | AH14: 127 | AI14: 0.78 | AJ14: 118.97 | AK14: 67 | AL14: 0.5 | AM14: 86.11 | AN14: 24 | AO14: 0.38 | AP14: 166.67
C15: 남 | D15: 415 | E15: 0.47 | G15: 26 | H15: 0.35 | J15: 8 | K15: 0.23 | M15: 17 | N15: 0.28 | P15: 31 | Q15: 0.39 | S15: 61 | T15: 0.46 | V15: 38 | W15: 0.38 | Y15: 48 | Z15: 0.8 | AB15: 32 | AC15: 0.42 | AE15: 39 | AF15: 0.52 | AH15: 69 | AI15: 0.83 | AK15: 31 | AL15: 0.43 | AN15: 15 | AO15: 0.43
C16: 여 | D16: 388 | E16: 0.45 | G16: 24 | H16: 0.36 | J16: 8 | K16: 0.25 | M16: 25 | N16: 0.43 | P16: 26 | Q16: 0.33 | S16: 71 | T16: 0.53 | V16: 30 | W16: 0.32 | Y16: 39 | Z16: 0.57 | AB16: 18 | AC16: 0.23 | AE16: 44 | AF16: 0.62 | AH16: 58 | AI16: 0.73 | AK16: 36 | AL16: 0.58 | AN16: 9 | AO16: 0.31
B17: 2세 | C17: 계 | D17: 767 | E17: 0.44 | F17: 106.18 | G17: 38 | H17: 0.27 | I17: 153.33 | J17: 13 | K17: 0.19 | L17: 62.5 | M17: 39 | N17: 0.33 | O17: 105.26 | P17: 52 | Q17: 0.33 | R17: 108 | S17: 119 | T17: 0.45 | U17: 116.36 | V17: 58 | W17: 0.3 | X17: 81.25 | Y17: 69 | Z17: 0.54 | AA17: 81.58 | AB17: 54 | AC17: 0.35 | AD17: 170 | AE17: 76 | AF17: 0.52 | AG17: 111.11 | AH17: 149 | AI17: 0.92 | AJ17: 96.05 | AK17: 67 | AL17: 0.5 | AM17: 109.38 | AN17: 33 | AO17: 0.52 | AP17: 106.25
C18: 남 | D18: 395 | E18: 0.45 | G18: 23 | H18: 0.31 | J18: 5 | K18: 0.14 | M18: 20 | N18: 0.33 | P18: 27 | Q18: 0.34 | S18: 64 | T18: 0.48 | V18: 26 | W18: 0.26 | Y18: 31 | Z18: 0.52 | AB18: 34 | AC18: 0.45 | AE18: 40 | AF18: 0.53 | AH18: 73 | AI18: 0.88 | AK18: 35 | AL18: 0.49 | AN18: 17 | AO18: 0.49
C19: 여 | D19: 372 | E19: 0.44 | G19: 15 | H19: 0.22 | J19: 8 | K19: 0.25 | M19: 19 | N19: 0.33 | P19: 25 | Q19: 0.31 | S19: 55 | T19: 0.41 | V19: 32 | W19: 0.35 | Y19: 38 | Z19: 0.56 | AB19: 20 | AC19: 0.25 | AE19: 36 | AF19: 0.51 | AH19: 76 | AI19: 0.96 | AK19: 32 | AL19: 0.51 | AN19: 16 | AO19: 0.55
B20: 3세 | C20: 계 | D20: 901 | E20: 0.52 | F20: 95.02 | G20: 50 | H20: 0.35 | I20: 85.19 | J20: 17 | K20: 0.25 | L20: 41.67 | M20: 53 | N20: 0.45 | O20: 76.67 | P20: 67 | Q20: 0.42 | R20: 131.03 | S20: 138 | T20: 0.52 | U20: 74.68 | V20: 79 | W20: 0.41 | X20: 107.89 | Y20: 86 | Z20: 0.67 | AA20: 104.76 | AB20: 86 | AC20: 0.55 | AD20: 95.45 | AE20: 67 | AF20: 0.46 | AG20: 91.43 | AH20: 150 | AI20: 0.93 | AJ20: 127.27 | AK20: 70 | AL20: 0.52 | AM20: 89.19 | AN20: 38 | AO20: 0.59 | AP20: 65.22
C21: 남 | D21: 439 | E21: 0.5 | G21: 23 | H21: 0.31 | J21: 5 | K21: 0.14 | M21: 23 | N21: 0.38 | P21: 38 | Q21: 0.48 | S21: 59 | T21: 0.45 | V21: 41 | W21: 0.41 | Y21: 44 | Z21: 0.73 | AB21: 42 | AC21: 0.56 | AE21: 32 | AF21: 0.43 | AH21: 84 | AI21: 1.01 | AK21: 33 | AL21: 0.46 | AN21: 15 | AO21: 0.43
C22: 여 | D22: 462 | E22: 0.54 | G22: 27 | H22: 0.4 | J22: 12 | K22: 0.38 | M22: 30 | N22: 0.52 | P22: 29 | Q22: 0.36 | S22: 79 | T22: 0.58 | V22: 38 | W22: 0.41 | Y22: 42 | Z22: 0.62 | AB22: 44 | AC22: 0.55 | AE22: 35 | AF22: 0.5 | AH22: 66 | AI22: 0.83 | AK22: 37 | AL22: 0.59 | AN22: 23 | AO22: 0.79
B23: 4세 | C23: 계 | D23: 884 | E23: 0.51 | F23: 90.52 | G23: 44 | H23: 0.31 | I23: 91.3 | J23: 12 | K23: 0.18 | L23: 300 | M23: 56 | N23: 0.47 | O23: 115.38 | P23: 74 | Q23: 0.47 | R23: 131.25 | S23: 148 | T23: 0.55 | U23: 78.31 | V23: 64 | W23: 0.33 | X23: 68.42 | Y23: 77 | Z23: 0.6 | AA23: 108.11 | AB23: 73 | AC23: 0.47 | AD23: 58.7 | AE23: 92 | AF23: 0.63 | AG23: 84 | AH23: 170 | AI23: 1.05 | AJ23: 93.18 | AK23: 47 | AL23: 0.35 | AM23: 88 | AN23: 27 | AO23: 0.42 | AP23: 107.69
C24: 남 | D24: 420 | E24: 0.48 | G24: 21 | H24: 0.28 | J24: 9 | K24: 0.25 | M24: 30 | N24: 0.5 | P24: 42 | Q24: 0.53 | S24: 65 | T24: 0.49 | V24: 26 | W24: 0.26 | Y24: 40 | Z24: 0.67 | AB24: 27 | AC24: 0.36 | AE24: 42 | AF24: 0.56 | AH24: 82 | AI24: 0.99 | AK24: 22 | AL24: 0.31 | AN24: 14 | AO24: 0.4
C25: 여 | D25: 464 | E25: 0.54 | G25: 23 | H25: 0.34 | J25: 3 | K25: 0.09 | M25: 26 | N25: 0.45 | P25: 32 | Q25: 0.4 | S25: 83 | T25: 0.61 | V25: 38 | W25: 0.41 | Y25: 37 | Z25: 0.55 | AB25: 46 | AC25: 0.58 | AE25: 50 | AF25: 0.71 | AH25: 88 | AI25: 1.11 | AK25: 25 | AL25: 0.4 | AN25: 13 | AO25: 0.45
B26: 5세 | C26: 계 | D26: 1013 | E26: 0.58 | F26: 106.31 | G26: 58 | H26: 0.41 | I26: 114.81 | J26: 24 | K26: 0.36 | L26: 71.43 | M26: 51 | N26: 0.43 | O26: 75.86 | P26: 86 | Q26: 0.54 | R26: 104.76 | S26: 169 | T26: 0.63 | U26: 111.25 | V26: 87 | W26: 0.45 | X26: 97.73 | Y26: 78 | Z26: 0.61 | AA26: 65.96 | AB26: 83 | AC26: 0.54 | AD26: 124.32 | AE26: 82 | AF26: 0.56 | AG26: 134.29 | AH26: 189 | AI26: 1.17 | AJ26: 139.24 | AK26: 73 | AL26: 0.54 | AM26: 97.3 | AN26: 33 | AO26: 0.52 | AP26: 65
C27: 남 | D27: 522 | E27: 0.59 | G27: 31 | H27: 0.41 | J27: 10 | K27: 0.28 | M27: 22 | N27: 0.36 | P27: 44 | Q27: 0.56 | S27: 89 | T27: 0.67 | V27: 43 | W27: 0.43 | Y27: 31 | Z27: 0.52 | AB27: 46 | AC27: 0.61 | AE27: 47 | AF27: 0.62 | AH27: 110 | AI27: 1.33 | AK27: 36 | AL27: 0.5 | AN27: 13 | AO27: 0.37
C28: 여 | D28: 491 | E28: 0.58 | G28: 27 | H28: 0.4 | J28: 14 | K28: 0.44 | M28: 29 | N28: 0.5 | P28: 42 | Q28: 0.53 | S28: 80 | T28: 0.59 | V28: 44 | W28: 0.48 | Y28: 47 | Z28: 0.69 | AB28: 37 | AC28: 0.47 | AE28: 35 | AF28: 0.5 | AH28: 79 | AI28: 1 | AK28: 37 | AL28: 0.59 | AN28: 20 | AO28: 0.69
B29: 6세 | C29: 계 | D29: 1117 | E29: 0.64 | F29: 92.25 | G29: 55 | H29: 0.39 | I29: 57.14 | J29: 28 | K29: 0.42 | L29: 180 | M29: 55 | N29: 0.46 | O29: 96.43 | P29: 92 | Q29: 0.58 | R29: 100 | S29: 207 | T29: 0.77 | U29: 99.04 | V29: 93 | W29: 0.48 | X29: 69.09 | Y29: 74 | Z29: 0.58 | AA29: 94.74 | AB29: 106 | AC29: 0.68 | AD29: 112 | AE29: 88 | AF29: 0.6 | AG29: 76 | AH29: 220 | AI29: 1.36 | AJ29: 88.03 | AK29: 55 | AL29: 0.41 | AM29: 120 | AN29: 44 | AO29: 0.69 | AP29: 91.3
C30: 남 | D30: 536 | E30: 0.61 | G30: 20 | H30: 0.27 | J30: 18 | K30: 0.51 | M30: 27 | N30: 0.45 | P30: 46 | Q30: 0.59 | S30: 103 | T30: 0.78 | V30: 38 | W30: 0.38 | Y30: 36 | Z30: 0.6 | AB30: 56 | AC30: 0.74 | AE30: 38 | AF30: 0.51 | AH30: 103 | AI30: 1.24 | AK30: 30 | AL30: 0.42 | AN30: 21 | AO30: 0.6
C31: 여 | D31: 581 | E31: 0.68 | G31: 35 | H31: 0.52 | J31: 10 | K31: 0.31 | M31: 28 | N31: 0.48 | P31: 46 | Q31: 0.58 | S31: 104 | T31: 0.77 | V31: 55 | W31: 0.59 | Y31: 38 | Z31: 0.56 | AB31: 50 | AC31: 0.63 | AE31: 50 | AF31: 0.71 | AH31: 117 | AI31: 1.48 | AK31: 25 | AL31: 0.4 | AN31: 23 | AO31: 0.79
B32: 7세 | C32: 계 | D32: 1189 | E32: 0.69 | F32: 106.42 | G32: 67 | H32: 0.47 | I32: 97.06 | J32: 31 | K32: 0.46 | L32: 93.75 | M32: 56 | N32: 0.47 | O32: 143.48 | P32: 100 | Q32: 0.63 | R32: 85.19 | S32: 216 | T32: 0.81 | U32: 109.71 | V32: 89 | W32: 0.46 | X32: 134.21 | Y32: 86 | Z32: 0.67 | AA32: 75.51 | AB32: 96 | AC32: 0.62 | AD32: 84.62 | AE32: 102 | AF32: 0.7 | AG32: 121.74 | AH32: 227 | AI32: 1.4 | AJ32: 118.27 | AK32: 77 | AL32: 0.57 | AM32: 120 | AN32: 42 | AO32: 0.66 | AP32: 90.91
C33: 남 | D33: 613 | E33: 0.7 | G33: 33 | H33: 0.44 | J33: 15 | K33: 0.42 | M33: 33 | N33: 0.55 | P33: 46 | Q33: 0.59 | S33: 113 | T33: 0.86 | V33: 51 | W33: 0.51 | Y33: 37 | Z33: 0.62 | AB33: 44 | AC33: 0.58 | AE33: 56 | AF33: 0.74 | AH33: 123 | AI33: 1.49 | AK33: 42 | AL33: 0.59 | AN33: 20 | AO33: 0.57
C34: 여 | D34: 576 | E34: 0.67 | G34: 34 | H34: 0.5 | J34: 16 | K34: 0.5 | M34: 23 | N34: 0.4 | P34: 54 | Q34: 0.68 | S34: 103 | T34: 0.76 | V34: 38 | W34: 0.41 | Y34: 49 | Z34: 0.72 | AB34: 52 | AC34: 0.65 | AE34: 46 | AF34: 0.65 | AH34: 104 | AI34: 1.31 | AK34: 35 | AL34: 0.56 | AN34: 22 | AO34: 0.76
B35: 8세 | C35: 계 | D35: 1220 | E35: 0.7 | F35: 112.17 | G35: 53 | H35: 0.37 | I35: 152.38 | J35: 29 | K35: 0.43 | L35: 163.64 | M35: 68 | N35: 0.57 | O35: 88.89 | P35: 96 | Q35: 0.61 | R35: 88.24 | S35: 246 | T35: 0.92 | U35: 105 | V35: 102 | W35: 0.53 | X35: 108.16 | Y35: 88 | Z35: 0.69 | AA35: 109.52 | AB35: 103 | AC35: 0.66 | AD35: 134.09 | AE35: 85 | AF35: 0.58 | AG35: 117.95 | AH35: 237 | AI35: 1.46 | AJ35: 99.16 | AK35: 65 | AL35: 0.49 | AM35: 140.74 | AN35: 48 | AO35: 0.75 | AP35: 200
C36: 남 | D36: 645 | E36: 0.73 | G36: 32 | H36: 0.43 | J36: 18 | K36: 0.51 | M36: 32 | N36: 0.53 | P36: 45 | Q36: 0.57 | S36: 126 | T36: 0.95 | V36: 53 | W36: 0.53 | Y36: 46 | Z36: 0.77 | AB36: 59 | AC36: 0.78 | AE36: 46 | AF36: 0.61 | AH36: 118 | AI36: 1.43 | AK36: 38 | AL36: 0.53 | AN36: 32 | AO36: 0.92
C37: 여 | D37: 575 | E37: 0.67 | G37: 21 | H37: 0.31 | J37: 11 | K37: 0.34 | M37: 36 | N37: 0.62 | P37: 51 | Q37: 0.64 | S37: 120 | T37: 0.89 | V37: 49 | W37: 0.53 | Y37: 42 | Z37: 0.62 | AB37: 44 | AC37: 0.55 | AE37: 39 | AF37: 0.55 | AH37: 119 | AI37: 1.5 | AK37: 27 | AL37: 0.43 | AN37: 16 | AO37: 0.55
B38: 9세 | C38: 계 | D38: 1297 | E38: 0.75 | F38: 101.4 | G38: 78 | H38: 0.55 | I38: 100 | J38: 31 | K38: 0.46 | L38: 72.22 | M38: 80 | N38: 0.67 | O38: 116.22 | P38: 105 | Q38: 0.66 | R38: 114.29 | S38: 250 | T38: 0.94 | U38: 96.85 | V38: 107 | W38: 0.56 | X38: 148.84 | Y38: 88 | Z38: 0.69 | AA38: 79.59 | AB38: 100 | AC38: 0.65 | AD38: 100 | AE38: 109 | AF38: 0.75 | AG38: 94.64 | AH38: 217 | AI38: 1.34 | AJ38: 108.65 | AK38: 78 | AL38: 0.58 | AM38: 65.96 | AN38: 54 | AO38: 0.84 | AP38: 116
C39: 남 | D39: 653 | E39: 0.74 | G39: 39 | H39: 0.52 | J39: 13 | K39: 0.37 | M39: 43 | N39: 0.71 | P39: 56 | Q39: 0.71 | S39: 123 | T39: 0.93 | V39: 64 | W39: 0.64 | Y39: 39 | Z39: 0.65 | AB39: 50 | AC39: 0.66 | AE39: 53 | AF39: 0.7 | AH39: 113 | AI39: 1.37 | AK39: 31 | AL39: 0.43 | AN39: 29 | AO39: 0.83
C40: 여 | D40: 644 | E40: 0.75 | G40: 39 | H40: 0.58 | J40: 18 | K40: 0.56 | M40: 37 | N40: 0.64 | P40: 49 | Q40: 0.61 | S40: 127 | T40: 0.94 | V40: 43 | W40: 0.46 | Y40: 49 | Z40: 0.72 | AB40: 50 | AC40: 0.63 | AE40: 56 | AF40: 0.79 | AH40: 104 | AI40: 1.31 | AK40: 47 | AL40: 0.75 | AN40: 25 | AO40: 0.86
B41: 10세 | C41: 계 | D41: 1371 | E41: 0.79 | F41: 108.99 | G41: 80 | H41: 0.56 | I41: 122.22 | J41: 43 | K41: 0.64 | L41: 126.32 | M41: 77 | N41: 0.65 | O41: 102.63 | P41: 116 | Q41: 0.73 | R41: 93.33 | S41: 293 | T41: 1.1 | U41: 107.8 | V41: 127 | W41: 0.66 | X41: 111.67 | Y41: 80 | Z41: 0.63 | AA41: 70.21 | AB41: 110 | AC41: 0.71 | AD41: 124.49 | AE41: 99 | AF41: 0.68 | AG41: 86.79 | AH41: 213 | AI41: 1.32 | AJ41: 126.6 | AK41: 85 | AL41: 0.63 | AM41: 150 | AN41: 48 | AO41: 0.75 | AP41: 92
C42: 남 | D42: 715 | E42: 0.81 | G42: 44 | H42: 0.59 | J42: 24 | K42: 0.68 | M42: 39 | N42: 0.65 | P42: 56 | Q42: 0.71 | S42: 152 | T42: 1.15 | V42: 67 | W42: 0.67 | Y42: 33 | Z42: 0.55 | AB42: 61 | AC42: 0.81 | AE42: 46 | AF42: 0.61 | AH42: 119 | AI42: 1.44 | AK42: 51 | AL42: 0.71 | AN42: 23 | AO42: 0.66
C43: 여 | D43: 656 | E43: 0.77 | G43: 36 | H43: 0.53 | J43: 19 | K43: 0.59 | M43: 38 | N43: 0.65 | P43: 60 | Q43: 0.75 | S43: 141 | T43: 1.04 | V43: 60 | W43: 0.65 | Y43: 47 | Z43: 0.69 | AB43: 49 | AC43: 0.62 | AE43: 53 | AF43: 0.75 | AH43: 94 | AI43: 1.19 | AK43: 34 | AL43: 0.54 | AN43: 25 | AO43: 0.86
B44: 11세 | C44: 계 | D44: 1452 | E44: 0.84 | F44: 102.79 | G44: 97 | H44: 0.68 | I44: 120.45 | J44: 42 | K44: 0.62 | L44: 133.33 | M44: 82 | N44: 0.69 | O44: 127.78 | P44: 121 | Q44: 0.76 | R44: 89.06 | S44: 324 | T44: 1.21 | U44: 97.56 | V44: 133 | W44: 0.69 | X44: 98.51 | Y44: 92 | Z44: 0.72 | AA44: 124.39 | AB44: 104 | AC44: 0.67 | AD44: 103.92 | AE44: 94 | AF44: 0.64 | AG44: 123.81 | AH44: 208 | AI44: 1.29 | AJ44: 103.92 | AK44: 97 | AL44: 0.72 | AM44: 97.96 | AN44: 58 | AO44: 0.91 | AP44: 52.63
C45: 남 | D45: 736 | E45: 0.84 | G45: 53 | H45: 0.71 | J45: 24 | K45: 0.68 | M45: 46 | N45: 0.76 | P45: 57 | Q45: 0.73 | S45: 160 | T45: 1.21 | V45: 66 | W45: 0.66 | Y45: 51 | Z45: 0.85 | AB45: 53 | AC45: 0.7 | AE45: 52 | AF45: 0.69 | AH45: 106 | AI45: 1.28 | AK45: 48 | AL45: 0.67 | AN45: 20 | AO45: 0.57
C46: 여 | D46: 716 | E46: 0.84 | G46: 44 | H46: 0.65 | J46: 18 | K46: 0.56 | M46: 36 | N46: 0.62 | P46: 64 | Q46: 0.8 | S46: 164 | T46: 1.21 | V46: 67 | W46: 0.72 | Y46: 41 | Z46: 0.6 | AB46: 51 | AC46: 0.64 | AE46: 42 | AF46: 0.59 | AH46: 102 | AI46: 1.29 | AK46: 49 | AL46: 0.79 | AN46: 38 | AO46: 1.31
B47: 12세 | C47: 계 | D47: 1387 | E47: 0.8 | F47: 114.04 | G47: 80 | H47: 0.56 | I47: 105.13 | J47: 41 | K47: 0.61 | L47: 105 | M47: 75 | N47: 0.63 | O47: 127.27 | P47: 135 | Q47: 0.85 | R47: 104.55 | S47: 307 | T47: 1.15 | U47: 108.84 | V47: 129 | W47: 0.67 | X47: 143.4 | Y47: 91 | Z47: 0.71 | AA47: 116.67 | AB47: 119 | AC47: 0.77 | AD47: 120.37 | AE47: 117 | AF47: 0.8 | AG47: 91.8 | AH47: 155 | AI47: 0.96 | AJ47: 124.64 | AK47: 87 | AL47: 0.65 | AM47: 102.33 | AN47: 51 | AO47: 0.8 | AP47: 142.86
C48: 남 | D48: 739 | E48: 0.84 | G48: 41 | H48: 0.55 | J48: 21 | K48: 0.59 | M48: 42 | N48: 0.69 | P48: 69 | Q48: 0.88 | S48: 160 | T48: 1.21 | V48: 76 | W48: 0.76 | Y48: 49 | Z48: 0.82 | AB48: 65 | AC48: 0.86 | AE48: 56 | AF48: 0.74 | AH48: 86 | AI48: 1.04 | AK48: 44 | AL48: 0.61 | AN48: 30 | AO48: 0.86
C49: 여 | D49: 648 | E49: 0.76 | G49: 39 | H49: 0.58 | J49: 20 | K49: 0.63 | M49: 33 | N49: 0.57 | P49: 66 | Q49: 0.83 | S49: 147 | T49: 1.09 | V49: 53 | W49: 0.57 | Y49: 42 | Z49: 0.62 | AB49: 54 | AC49: 0.68 | AE49: 61 | AF49: 0.86 | AH49: 69 | AI49: 0.87 | AK49: 43 | AL49: 0.69 | AN49: 21 | AO49: 0.72
B50: 13세 | C50: 계 | D50: 1430 | E50: 0.82 | F50: 111.23 | G50: 93 | H50: 0.65 | I50: 144.74 | J50: 46 | K50: 0.68 | L50: 142.11 | M50: 102 | N50: 0.86 | O50: 137.21 | P50: 135 | Q50: 0.85 | R50: 121.31 | S50: 324 | T50: 1.21 | U50: 103.77 | V50: 129 | W50: 0.67 | X50: 126.32 | Y50: 93 | Z50: 0.73 | AA50: 89.8 | AB50: 124 | AC50: 0.8 | AD50: 143.14 | AE50: 72 | AF50: 0.49 | AG50: 100 | AH50: 157 | AI50: 0.97 | AJ50: 96.25 | AK50: 94 | AL50: 0.7 | AM50: 108.89 | AN50: 61 | AO50: 0.95 | AP50: 56.41
C51: 남 | D51: 753 | E51: 0.85 | G51: 55 | H51: 0.73 | J51: 27 | K51: 0.76 | M51: 59 | N51: 0.98 | P51: 74 | Q51: 0.94 | S51: 165 | T51: 1.25 | V51: 72 | W51: 0.72 | Y51: 44 | Z51: 0.73 | AB51: 73 | AC51: 0.97 | AE51: 36 | AF51: 0.48 | AH51: 77 | AI51: 0.93 | AK51: 49 | AL51: 0.68 | AN51: 22 | AO51: 0.63
C52: 여 | D52: 677 | E52: 0.79 | G52: 38 | H52: 0.56 | J52: 19 | K52: 0.59 | M52: 43 | N52: 0.74 | P52: 61 | Q52: 0.76 | S52: 159 | T52: 1.18 | V52: 57 | W52: 0.62 | Y52: 49 | Z52: 0.72 | AB52: 51 | AC52: 0.64 | AE52: 36 | AF52: 0.51 | AH52: 80 | AI52: 1.01 | AK52: 45 | AL52: 0.72 | AN52: 39 | AO52: 1.34
B53: 14세 | C53: 계 | D53: 1471 | E53: 0.85 | F53: 101.78 | G53: 93 | H53: 0.65 | I53: 89.8 | J53: 43 | K53: 0.64 | L53: 95.45 | M53: 83 | N53: 0.7 | O53: 93.02 | P53: 139 | Q53: 0.88 | R53: 120.63 | S53: 332 | T53: 1.24 | U53: 81.42 | V53: 129 | W53: 0.67 | X53: 111.48 | Y53: 102 | Z53: 0.8 | AA53: 88.89 | AB53: 121 | AC53: 0.78 | AD53: 116.07 | AE53: 101 | AF53: 0.69 | AG53: 98.04 | AH53: 148 | AI53: 0.91 | AJ53: 117.65 | AK53: 107 | AL53: 0.8 | AM53: 122.92 | AN53: 73 | AO53: 1.14 | AP53: 135.48
C54: 남 | D54: 742 | E54: 0.84 | G54: 44 | H54: 0.59 | J54: 21 | K54: 0.59 | M54: 40 | N54: 0.66 | P54: 76 | Q54: 0.97 | S54: 149 | T54: 1.13 | V54: 68 | W54: 0.68 | Y54: 48 | Z54: 0.8 | AB54: 65 | AC54: 0.86 | AE54: 50 | AF54: 0.66 | AH54: 80 | AI54: 0.97 | AK54: 59 | AL54: 0.82 | AN54: 42 | AO54: 1.2
C55: 여 | D55: 729 | E55: 0.85 | G55: 49 | H55: 0.73 | J55: 22 | K55: 0.69 | M55: 43 | N55: 0.74 | P55: 63 | Q55: 0.79 | S55: 183 | T55: 1.35 | V55: 61 | W55: 0.66 | Y55: 54 | Z55: 0.8 | AB55: 56 | AC55: 0.71 | AE55: 51 | AF55: 0.72 | AH55: 68 | AI55: 0.86 | AK55: 48 | AL55: 0.77 | AN55: 31 | AO55: 1.07
B56: 15세 | C56: 계 | D56: 1629 | E56: 0.94 | F56: 112.94 | G56: 103 | H56: 0.72 | I56: 157.5 | J56: 57 | K56: 0.85 | L56: 137.5 | M56: 91 | N56: 0.77 | O56: 139.47 | P56: 168 | Q56: 1.06 | R56: 104.88 | S56: 389 | T56: 1.46 | U56: 103.66 | V56: 167 | W56: 0.87 | X56: 114.1 | Y56: 100 | Z56: 0.78 | AA56: 117.39 | AB56: 140 | AC56: 0.9 | AD56: 97.18 | AE56: 117 | AF56: 0.8 | AG56: 165.91 | AH56: 131 | AI56: 0.81 | AJ56: 104.69 | AK56: 111 | AL56: 0.83 | AM56: 85 | AN56: 55 | AO56: 0.86 | AP56: 103.7
C57: 남 | D57: 864 | E57: 0.98 | G57: 63 | H57: 0.84 | J57: 33 | K57: 0.93 | M57: 53 | N57: 0.88 | P57: 86 | Q57: 1.09 | S57: 198 | T57: 1.5 | V57: 89 | W57: 0.89 | Y57: 54 | Z57: 0.9 | AB57: 69 | AC57: 0.91 | AE57: 73 | AF57: 0.97 | AH57: 67 | AI57: 0.81 | AK57: 51 | AL57: 0.71 | AN57: 28 | AO57: 0.8
C58: 여 | D58: 765 | E58: 0.9 | G58: 40 | H58: 0.59 | J58: 24 | K58: 0.75 | M58: 38 | N58: 0.65 | P58: 82 | Q58: 1.03 | S58: 191 | T58: 1.41 | V58: 78 | W58: 0.84 | Y58: 46 | Z58: 0.68 | AB58: 71 | AC58: 0.89 | AE58: 44 | AF58: 0.62 | AH58: 64 | AI58: 0.81 | AK58: 60 | AL58: 0.96 | AN58: 27 | AO58: 0.93
B59: 16세 | C59: 계 | D59: 1471 | E59: 0.85 | F59: 109.25 | G59: 61 | H59: 0.43 | I59: 125.93 | J59: 33 | K59: 0.49 | L59: 94.12 | M59: 99 | N59: 0.83 | O59: 120 | P59: 151 | Q59: 0.95 | R59: 118.84 | S59: 369 | T59: 1.38 | U59: 100.54 | V59: 143 | W59: 0.74 | X59: 93.24 | Y59: 105 | Z59: 0.82 | AA59: 101.92 | AB59: 123 | AC59: 0.79 | AD59: 127.78 | AE59: 108 | AF59: 0.74 | AG59: 184.21 | AH59: 131 | AI59: 0.81 | AJ59: 107.94 | AK59: 101 | AL59: 0.75 | AM59: 87.04 | AN59: 47 | AO59: 0.74 | AP59: 80.77
C60: 남 | D60: 768 | E60: 0.87 | G60: 34 | H60: 0.45 | J60: 16 | K60: 0.45 | M60: 54 | N60: 0.89 | P60: 82 | Q60: 1.04 | S60: 185 | T60: 1.4 | V60: 69 | W60: 0.69 | Y60: 53 | Z60: 0.88 | AB60: 69 | AC60: 0.91 | AE60: 70 | AF60: 0.93 | AH60: 68 | AI60: 0.82 | AK60: 47 | AL60: 0.66 | AN60: 21 | AO60: 0.6
C61: 여 | D61: 703 | E61: 0.82 | G61: 27 | H61: 0.4 | J61: 17 | K61: 0.53 | M61: 45 | N61: 0.77 | P61: 69 | Q61: 0.87 | S61: 184 | T61: 1.36 | V61: 74 | W61: 0.8 | Y61: 52 | Z61: 0.77 | AB61: 54 | AC61: 0.68 | AE61: 38 | AF61: 0.54 | AH61: 63 | AI61: 0.8 | AK61: 54 | AL61: 0.87 | AN61: 26 | AO61: 0.9
B62: 17세 | C62: 계 | D62: 1492 | E62: 0.86 | F62: 106.08 | G62: 76 | H62: 0.53 | I62: 94.87 | J62: 46 | K62: 0.68 | L62: 119.05 | M62: 90 | N62: 0.76 | O62: 109.3 | P62: 132 | Q62: 0.83 | R62: 97.01 | S62: 347 | T62: 1.3 | U62: 115.53 | V62: 153 | W62: 0.8 | X62: 121.74 | Y62: 103 | Z62: 0.81 | AA62: 94.34 | AB62: 165 | AC62: 1.06 | AD62: 83.33 | AE62: 107 | AF62: 0.73 | AG62: 109.8 | AH62: 123 | AI62: 0.76 | AJ62: 101.64 | AK62: 111 | AL62: 0.83 | AM62: 94.74 | AN62: 39 | AO62: 0.61 | AP62: 225
C63: 남 | D63: 768 | E63: 0.87 | G63: 37 | H63: 0.49 | J63: 25 | K63: 0.71 | M63: 47 | N63: 0.78 | P63: 65 | Q63: 0.83 | S63: 186 | T63: 1.41 | V63: 84 | W63: 0.84 | Y63: 50 | Z63: 0.83 | AB63: 75 | AC63: 0.99 | AE63: 56 | AF63: 0.74 | AH63: 62 | AI63: 0.75 | AK63: 54 | AL63: 0.75 | AN63: 27 | AO63: 0.77
C64: 여 | D64: 724 | E64: 0.85 | G64: 39 | H64: 0.58 | J64: 21 | K64: 0.66 | M64: 43 | N64: 0.74 | P64: 67 | Q64: 0.84 | S64: 161 | T64: 1.19 | V64: 69 | W64: 0.75 | Y64: 53 | Z64: 0.78 | AB64: 90 | AC64: 1.13 | AE64: 51 | AF64: 0.72 | AH64: 61 | AI64: 0.77 | AK64: 57 | AL64: 0.91 | AN64: 12 | AO64: 0.41
B65: 18세 | C65: 계 | D65: 1786 | E65: 1.03 | F65: 123.81 | G65: 111 | H65: 0.78 | I65: 226.47 | J65: 49 | K65: 0.73 | L65: 172.22 | M65: 105 | N65: 0.89 | O65: 101.92 | P65: 199 | Q65: 1.26 | R65: 148.75 | S65: 431 | T65: 1.61 | U65: 115.5 | V65: 169 | W65: 0.88 | X65: 122.37 | Y65: 104 | Z65: 0.81 | AA65: 89.09 | AB65: 175 | AC65: 1.13 | AD65: 121.52 | AE65: 109 | AF65: 0.75 | AG65: 122.45 | AH65: 150 | AI65: 0.93 | AJ65: 100 | AK65: 122 | AL65: 0.91 | AM65: 165.22 | AN65: 62 | AO65: 0.97 | AP65: 82.35
C66: 남 | D66: 988 | E66: 1.12 | G66: 77 | H66: 1.03 | J66: 31 | K66: 0.88 | M66: 53 | N66: 0.88 | P66: 119 | Q66: 1.51 | S66: 231 | T66: 1.75 | V66: 93 | W66: 0.93 | Y66: 49 | Z66: 0.82 | AB66: 96 | AC66: 1.27 | AE66: 60 | AF66: 0.8 | AH66: 75 | AI66: 0.91 | AK66: 76 | AL66: 1.06 | AN66: 28 | AO66: 0.8
C67: 여 | D67: 798 | E67: 0.94 | G67: 34 | H67: 0.5 | J67: 18 | K67: 0.56 | M67: 52 | N67: 0.89 | P67: 80 | Q67: 1 | S67: 200 | T67: 1.48 | V67: 76 | W67: 0.82 | Y67: 55 | Z67: 0.81 | AB67: 79 | AC67: 0.99 | AE67: 49 | AF67: 0.69 | AH67: 75 | AI67: 0.95 | AK67: 46 | AL67: 0.74 | AN67: 34 | AO67: 1.17
B68: 19세 | C68: 계 | D68: 1805 | E68: 1.04 | F68: 105.58 | G68: 157 | H68: 1.1 | I68: 82.56 | J68: 56 | K68: 0.83 | L68: 154.55 | M68: 87 | N68: 0.73 | O68: 89.13 | P68: 186 | Q68: 1.17 | R68: 129.63 | S68: 397 | T68: 1.49 | U68: 111.17 | V68: 176 | W68: 0.91 | X68: 112.05 | Y68: 103 | Z68: 0.81 | AA68: 83.93 | AB68: 166 | AC68: 1.07 | AD68: 90.8 | AE68: 146 | AF68: 1 | AG68: 131.75 | AH68: 136 | AI68: 0.84 | AJ68: 100 | AK68: 148 | AL68: 1.1 | AM68: 92.21 | AN68: 47 | AO68: 0.74 | AP68: 123.81
C69: 남 | D69: 927 | E69: 1.05 | G69: 71 | H69: 0.95 | J69: 34 | K69: 0.96 | M69: 41 | N69: 0.68 | P69: 105 | Q69: 1.34 | S69: 209 | T69: 1.58 | V69: 93 | W69: 0.93 | Y69: 47 | Z69: 0.78 | AB69: 79 | AC69: 1.04 | AE69: 83 | AF69: 1.1 | AH69: 68 | AI69: 0.82 | AK69: 71 | AL69: 0.99 | AN69: 26 | AO69: 0.74
C70: 여 | D70: 878 | E70: 1.03 | G70: 86 | H70: 1.28 | J70: 22 | K70: 0.69 | M70: 46 | N70: 0.79 | P70: 81 | Q70: 1.02 | S70: 188 | T70: 1.39 | V70: 83 | W70: 0.9 | Y70: 56 | Z70: 0.83 | AB70: 87 | AC70: 1.1 | AE70: 63 | AF70: 0.89 | AH70: 68 | AI70: 0.86 | AK70: 77 | AL70: 1.23 | AN70: 21 | AO70: 0.72
B71: 20세 | C71: 계 | D71: 1874 | E71: 1.08 | F71: 101.29 | G71: 184 | H71: 1.29 | I71: 68.81 | J71: 50 | K71: 0.74 | L71: 85.19 | M71: 102 | N71: 0.86 | O71: 88.89 | P71: 190 | Q71: 1.2 | R71: 79.25 | S71: 356 | T71: 1.33 | U71: 108.19 | V71: 211 | W71: 1.1 | X71: 102.88 | Y71: 111 | Z71: 0.87 | AA71: 113.46 | AB71: 169 | AC71: 1.09 | AD71: 128.38 | AE71: 149 | AF71: 1.02 | AG71: 115.94 | AH71: 134 | AI71: 0.83 | AJ71: 106.15 | AK71: 151 | AL71: 1.13 | AM71: 109.72 | AN71: 67 | AO71: 1.05 | AP71: 139.29
C72: 남 | D72: 943 | E72: 1.07 | G72: 75 | H72: 1 | J72: 23 | K72: 0.65 | M72: 48 | N72: 0.79 | P72: 84 | Q72: 1.07 | S72: 185 | T72: 1.4 | V72: 107 | W72: 1.07 | Y72: 59 | Z72: 0.98 | AB72: 95 | AC72: 1.26 | AE72: 80 | AF72: 1.06 | AH72: 69 | AI72: 0.83 | AK72: 79 | AL72: 1.1 | AN72: 39 | AO72: 1.12
C73: 여 | D73: 931 | E73: 1.09 | G73: 109 | H73: 1.62 | J73: 27 | K73: 0.84 | M73: 54 | N73: 0.93 | P73: 106 | Q73: 1.33 | S73: 171 | T73: 1.27 | V73: 104 | W73: 1.12 | Y73: 52 | Z73: 0.77 | AB73: 74 | AC73: 0.93 | AE73: 69 | AF73: 0.98 | AH73: 65 | AI73: 0.82 | AK73: 72 | AL73: 1.15 | AN73: 28 | AO73: 0.96
B74: 21세 | C74: 계 | D74: 2234 | E74: 1.29 | F74: 112.96 | G74: 214 | H74: 1.5 | I74: 64.62 | J74: 62 | K74: 0.92 | L74: 129.63 | M74: 132 | N74: 1.11 | O74: 112.9 | P74: 211 | Q74: 1.33 | R74: 119.79 | S74: 459 | T74: 1.72 | U74: 127.23 | V74: 251 | W74: 1.3 | X74: 120.18 | Y74: 146 | Z74: 1.14 | AA74: 100 | AB74: 228 | AC74: 1.47 | AD74: 105.41 | AE74: 145 | AF74: 0.99 | AG74: 133.87 | AH74: 144 | AI74: 0.89 | AJ74: 182.35 | AK74: 169 | AL74: 1.26 | AM74: 101.19 | AN74: 73 | AO74: 1.14 | AP74: 97.3
C75: 남 | D75: 1185 | E75: 1.34 | G75: 84 | H75: 1.12 | J75: 35 | K75: 0.99 | M75: 70 | N75: 1.16 | P75: 115 | Q75: 1.46 | S75: 257 | T75: 1.95 | V75: 137 | W75: 1.37 | Y75: 73 | Z75: 1.22 | AB75: 117 | AC75: 1.55 | AE75: 83 | AF75: 1.1 | AH75: 93 | AI75: 1.12 | AK75: 85 | AL75: 1.19 | AN75: 36 | AO75: 1.03
C76: 여 | D76: 1049 | E76: 1.23 | G76: 130 | H76: 1.93 | J76: 27 | K76: 0.84 | M76: 62 | N76: 1.07 | P76: 96 | Q76: 1.2 | S76: 202 | T76: 1.49 | V76: 114 | W76: 1.23 | Y76: 73 | Z76: 1.08 | AB76: 111 | AC76: 1.4 | AE76: 62 | AF76: 0.88 | AH76: 51 | AI76: 0.64 | AK76: 84 | AL76: 1.35 | AN76: 37 | AO76: 1.27
B77: 22세 | C77: 계 | D77: 2228 | E77: 1.28 | F77: 122.8 | G77: 264 | H77: 1.86 | I77: 84.62 | J77: 63 | K77: 0.93 | L77: 162.5 | M77: 105 | N77: 0.89 | O77: 156.1 | P77: 183 | Q77: 1.16 | R77: 125.93 | S77: 437 | T77: 1.64 | U77: 121.83 | V77: 276 | W77: 1.43 | X77: 95.74 | Y77: 131 | Z77: 1.03 | AA77: 142.59 | AB77: 207 | AC77: 1.34 | AD77: 165.38 | AE77: 158 | AF77: 1.08 | AG77: 110.67 | AH77: 158 | AI77: 0.98 | AJ77: 128.99 | AK77: 169 | AL77: 1.26 | AM77: 177.05 | AN77: 77 | AO77: 1.2 | AP77: 113.89
C78: 남 | D78: 1228 | E78: 1.39 | G78: 121 | H78: 1.62 | J78: 39 | K78: 1.1 | M78: 64 | N78: 1.06 | P78: 102 | Q78: 1.3 | S78: 240 | T78: 1.82 | V78: 135 | W78: 1.35 | Y78: 77 | Z78: 1.28 | AB78: 129 | AC78: 1.71 | AE78: 83 | AF78: 1.1 | AH78: 89 | AI78: 1.08 | AK78: 108 | AL78: 1.51 | AN78: 41 | AO78: 1.17
C79: 여 | D79: 1000 | E79: 1.17 | G79: 143 | H79: 2.12 | J79: 24 | K79: 0.75 | M79: 41 | N79: 0.71 | P79: 81 | Q79: 1.02 | S79: 197 | T79: 1.46 | V79: 141 | W79: 1.52 | Y79: 54 | Z79: 0.8 | AB79: 78 | AC79: 0.98 | AE79: 75 | AF79: 1.06 | AH79: 69 | AI79: 0.87 | AK79: 61 | AL79: 0.98 | AN79: 36 | AO79: 1.24
B80: 23세 | C80: 계 | D80: 2344 | E80: 1.35 | F80: 130.48 | G80: 239 | H80: 1.68 | I80: 136.63 | J80: 83 | K80: 1.23 | L80: 144.12 | M80: 124 | N80: 1.05 | O80: 117.54 | P80: 190 | Q80: 1.2 | R80: 153.33 | S80: 430 | T80: 1.61 | U80: 108.74 | V80: 284 | W80: 1.48 | X80: 116.79 | Y80: 144 | Z80: 1.13 | AA80: 111.76 | AB80: 203 | AC80: 1.31 | AD80: 167.11 | AE80: 184 | AF80: 1.26 | AG80: 142.11 | AH80: 164 | AI80: 1.01 | AJ80: 127.78 | AK80: 198 | AL80: 1.48 | AM80: 157.14 | AN80: 101 | AO80: 1.58 | AP80: 129.55
C81: 남 | D81: 1327 | E81: 1.51 | G81: 138 | H81: 1.84 | J81: 49 | K81: 1.38 | M81: 67 | N81: 1.11 | P81: 115 | Q81: 1.46 | S81: 224 | T81: 1.7 | V81: 153 | W81: 1.53 | Y81: 76 | Z81: 1.27 | AB81: 127 | AC81: 1.68 | AE81: 108 | AF81: 1.44 | AH81: 92 | AI81: 1.11 | AK81: 121 | AL81: 1.69 | AN81: 57 | AO81: 1.63
C82: 여 | D82: 1017 | E82: 1.19 | G82: 101 | H82: 1.5 | J82: 34 | K82: 1.06 | M82: 57 | N82: 0.98 | P82: 75 | Q82: 0.94 | S82: 206 | T82: 1.52 | V82: 131 | W82: 1.42 | Y82: 68 | Z82: 1 | AB82: 76 | AC82: 0.96 | AE82: 76 | AF82: 1.08 | AH82: 72 | AI82: 0.91 | AK82: 77 | AL82: 1.23 | AN82: 44 | AO82: 1.52
B83: 24세 | C83: 계 | D83: 2414 | E83: 1.39 | F83: 127.31 | G83: 260 | H83: 1.83 | I83: 116.67 | J83: 69 | K83: 1.02 | L83: 137.93 | M83: 123 | N83: 1.04 | O83: 186.05 | P83: 221 | Q83: 1.4 | R83: 114.56 | S83: 387 | T83: 1.45 | U83: 111.48 | V83: 303 | W83: 1.57 | X83: 124.44 | Y83: 163 | Z83: 1.28 | AA83: 123.29 | AB83: 215 | AC83: 1.39 | AD83: 150 | AE83: 196 | AF83: 1.34 | AG83: 115.38 | AH83: 177 | AI83: 1.09 | AJ83: 129.87 | AK83: 198 | AL83: 1.48 | AM83: 147.5 | AN83: 102 | AO83: 1.6 | AP83: 142.86
C84: 남 | D84: 1352 | E84: 1.53 | G84: 140 | H84: 1.87 | J84: 40 | K84: 1.13 | M84: 80 | N84: 1.32 | P84: 118 | Q84: 1.5 | S84: 204 | T84: 1.54 | V84: 168 | W84: 1.68 | Y84: 90 | Z84: 1.5 | AB84: 129 | AC84: 1.71 | AE84: 105 | AF84: 1.4 | AH84: 100 | AI84: 1.21 | AK84: 118 | AL84: 1.65 | AN84: 60 | AO84: 1.72
C85: 여 | D85: 1062 | E85: 1.24 | G85: 120 | H85: 1.78 | J85: 29 | K85: 0.91 | M85: 43 | N85: 0.74 | P85: 103 | Q85: 1.29 | S85: 183 | T85: 1.35 | V85: 135 | W85: 1.46 | Y85: 73 | Z85: 1.08 | AB85: 86 | AC85: 1.08 | AE85: 91 | AF85: 1.29 | AH85: 77 | AI85: 0.97 | AK85: 80 | AL85: 1.28 | AN85: 42 | AO85: 1.45
B86: 25세 | C86: 계 | D86: 2421 | E86: 1.4 | F86: 118.7 | G86: 227 | H86: 1.6 | I86: 141.49 | J86: 87 | K86: 1.29 | L86: 107.14 | M86: 140 | N86: 1.18 | O86: 89.19 | P86: 236 | Q86: 1.49 | R86: 107.02 | S86: 384 | T86: 1.44 | U86: 98.96 | V86: 305 | W86: 1.59 | X86: 125.93 | Y86: 173 | Z86: 1.35 | AA86: 121.79 | AB86: 184 | AC86: 1.19 | AD86: 145.33 | AE86: 191 | AF86: 1.31 | AG86: 107.61 | AH86: 171 | AI86: 1.06 | AJ86: 163.08 | AK86: 206 | AL86: 1.54 | AM86: 119.15 | AN86: 117 | AO86: 1.83 | AP86: 129.41
C87: 남 | D87: 1314 | E87: 1.49 | G87: 133 | H87: 1.78 | J87: 45 | K87: 1.27 | M87: 66 | N87: 1.09 | P87: 122 | Q87: 1.55 | S87: 191 | T87: 1.45 | V87: 170 | W87: 1.7 | Y87: 95 | Z87: 1.58 | AB87: 109 | AC87: 1.44 | AE87: 99 | AF87: 1.32 | AH87: 106 | AI87: 1.28 | AK87: 112 | AL87: 1.56 | AN87: 66 | AO87: 1.89
C88: 여 | D88: 1107 | E88: 1.3 | G88: 94 | H88: 1.4 | J88: 42 | K88: 1.31 | M88: 74 | N88: 1.27 | P88: 114 | Q88: 1.43 | S88: 193 | T88: 1.43 | V88: 135 | W88: 1.46 | Y88: 78 | Z88: 1.15 | AB88: 75 | AC88: 0.94 | AE88: 92 | AF88: 1.3 | AH88: 65 | AI88: 0.82 | AK88: 94 | AL88: 1.51 | AN88: 51 | AO88: 1.76
B89: 26세 | C89: 계 | D89: 2400 | E89: 1.38 | F89: 124.09 | G89: 214 | H89: 1.5 | I89: 148.84 | J89: 93 | K89: 1.38 | L89: 93.75 | M89: 123 | N89: 1.04 | O89: 112.07 | P89: 195 | Q89: 1.23 | R89: 87.5 | S89: 396 | T89: 1.48 | U89: 138.55 | V89: 321 | W89: 1.67 | X89: 116.89 | Y89: 164 | Z89: 1.28 | AA89: 107.59 | AB89: 203 | AC89: 1.31 | AD89: 123.08 | AE89: 202 | AF89: 1.38 | AG89: 132.18 | AH89: 188 | AI89: 1.16 | AJ89: 157.53 | AK89: 206 | AL89: 1.54 | AM89: 128.89 | AN89: 95 | AO89: 1.49 | AP89: 131.71
C90: 남 | D90: 1329 | E90: 1.51 | G90: 128 | H90: 1.71 | J90: 45 | K90: 1.27 | M90: 65 | N90: 1.08 | P90: 91 | Q90: 1.16 | S90: 230 | T90: 1.74 | V90: 173 | W90: 1.73 | Y90: 85 | Z90: 1.42 | AB90: 112 | AC90: 1.48 | AE90: 115 | AF90: 1.53 | AH90: 115 | AI90: 1.39 | AK90: 116 | AL90: 1.62 | AN90: 54 | AO90: 1.55
C91: 여 | D91: 1071 | E91: 1.26 | G91: 86 | H91: 1.28 | J91: 48 | K91: 1.5 | M91: 58 | N91: 1 | P91: 104 | Q91: 1.3 | S91: 166 | T91: 1.23 | V91: 148 | W91: 1.6 | Y91: 79 | Z91: 1.16 | AB91: 91 | AC91: 1.15 | AE91: 87 | AF91: 1.23 | AH91: 73 | AI91: 0.92 | AK91: 90 | AL91: 1.44 | AN91: 41 | AO91: 1.41
B92: 27세 | C92: 계 | D92: 2420 | E92: 1.4 | F92: 123.66 | G92: 220 | H92: 1.55 | I92: 134.04 | J92: 97 | K92: 1.44 | L92: 148.72 | M92: 143 | N92: 1.21 | O92: 107.25 | P92: 223 | Q92: 1.41 | R92: 104.59 | S92: 348 | T92: 1.3 | U92: 116.15 | V92: 331 | W92: 1.72 | X92: 139.86 | Y92: 154 | Z92: 1.21 | AA92: 133.33 | AB92: 171 | AC92: 1.1 | AD92: 122.08 | AE92: 211 | AF92: 1.45 | AG92: 131.87 | AH92: 183 | AI92: 1.13 | AJ92: 88.66 | AK92: 225 | AL92: 1.68 | AM92: 129.59 | AN92: 114 | AO92: 1.78 | AP92: 165.12
C93: 남 | D93: 1338 | E93: 1.52 | G93: 126 | H93: 1.68 | J93: 58 | K93: 1.64 | M93: 74 | N93: 1.22 | P93: 114 | Q93: 1.45 | S93: 187 | T93: 1.42 | V93: 193 | W93: 1.93 | Y93: 88 | Z93: 1.47 | AB93: 94 | AC93: 1.24 | AE93: 120 | AF93: 1.59 | AH93: 86 | AI93: 1.04 | AK93: 127 | AL93: 1.77 | AN93: 71 | AO93: 2.03
C94: 여 | D94: 1082 | E94: 1.27 | G94: 94 | H94: 1.4 | J94: 39 | K94: 1.22 | M94: 69 | N94: 1.19 | P94: 109 | Q94: 1.37 | S94: 161 | T94: 1.19 | V94: 138 | W94: 1.49 | Y94: 66 | Z94: 0.97 | AB94: 77 | AC94: 0.97 | AE94: 91 | AF94: 1.29 | AH94: 97 | AI94: 1.23 | AK94: 98 | AL94: 1.57 | AN94: 43 | AO94: 1.48
B95: 28세 | C95: 계 | D95: 2369 | E95: 1.37 | F95: 124.76 | G95: 205 | H95: 1.44 | I95: 130.34 | J95: 64 | K95: 0.95 | L95: 204.76 | M95: 131 | N95: 1.1 | O95: 118.33 | P95: 186 | Q95: 1.17 | R95: 138.46 | S95: 335 | T95: 1.25 | U95: 106.79 | V95: 314 | W95: 1.63 | X95: 143.41 | Y95: 170 | Z95: 1.33 | AA95: 97.67 | AB95: 168 | AC95: 1.08 | AD95: 100 | AE95: 193 | AF95: 1.32 | AG95: 127.06 | AH95: 231 | AI95: 1.43 | AJ95: 94.12 | AK95: 244 | AL95: 1.82 | AM95: 156.84 | AN95: 128 | AO95: 2 | AP95: 178.26
C96: 남 | D96: 1315 | E96: 1.49 | G96: 116 | H96: 1.55 | J96: 43 | K96: 1.22 | M96: 71 | N96: 1.17 | P96: 108 | Q96: 1.37 | S96: 173 | T96: 1.31 | V96: 185 | W96: 1.85 | Y96: 84 | Z96: 1.4 | AB96: 84 | AC96: 1.11 | AE96: 108 | AF96: 1.44 | AH96: 112 | AI96: 1.35 | AK96: 149 | AL96: 2.08 | AN96: 82 | AO96: 2.35
C97: 여 | D97: 1054 | E97: 1.24 | G97: 89 | H97: 1.32 | J97: 21 | K97: 0.66 | M97: 60 | N97: 1.03 | P97: 78 | Q97: 0.98 | S97: 162 | T97: 1.2 | V97: 129 | W97: 1.39 | Y97: 86 | Z97: 1.27 | AB97: 84 | AC97: 1.06 | AE97: 85 | AF97: 1.2 | AH97: 119 | AI97: 1.5 | AK97: 95 | AL97: 1.52 | AN97: 46 | AO97: 1.59
B98: 29세 | C98: 계 | D98: 2333 | E98: 1.34 | F98: 132.83 | G98: 190 | H98: 1.34 | I98: 163.89 | J98: 85 | K98: 1.26 | L98: 129.73 | M98: 146 | N98: 1.23 | O98: 139.34 | P98: 189 | Q98: 1.19 | R98: 158.9 | S98: 309 | T98: 1.16 | U98: 120.71 | V98: 306 | W98: 1.59 | X98: 125 | Y98: 159 | Z98: 1.24 | AA98: 117.81 | AB98: 182 | AC98: 1.17 | AD98: 136.36 | AE98: 230 | AF98: 1.58 | AG98: 116.98 | AH98: 234 | AI98: 1.45 | AJ98: 101.72 | AK98: 203 | AL98: 1.51 | AM98: 167.11 | AN98: 100 | AO98: 1.56 | AP98: 185.71
C99: 남 | D99: 1331 | E99: 1.51 | G99: 118 | H99: 1.58 | J99: 48 | K99: 1.36 | M99: 85 | N99: 1.41 | P99: 116 | Q99: 1.48 | S99: 169 | T99: 1.28 | V99: 170 | W99: 1.7 | Y99: 86 | Z99: 1.43 | AB99: 105 | AC99: 1.39 | AE99: 124 | AF99: 1.65 | AH99: 118 | AI99: 1.43 | AK99: 127 | AL99: 1.77 | AN99: 65 | AO99: 1.86
C100: 여 | D100: 1002 | E100: 1.17 | G100: 72 | H100: 1.07 | J100: 37 | K100: 1.16 | M100: 61 | N100: 1.05 | P100: 73 | Q100: 0.92 | S100: 140 | T100: 1.04 | V100: 136 | W100: 1.47 | Y100: 73 | Z100: 1.08 | AB100: 77 | AC100: 0.97 | AE100: 106 | AF100: 1.5 | AH100: 116 | AI100: 1.47 | AK100: 76 | AL100: 1.22 | AN100: 35 | AO100: 1.21
B101: 30세 | C101: 계 | D101: 2346 | E101: 1.35 | F101: 129.55 | G101: 190 | H101: 1.34 | I101: 137.5 | J101: 81 | K101: 1.2 | L101: 189.29 | M101: 149 | N101: 1.26 | O101: 144.26 | P101: 197 | Q101: 1.24 | R101: 134.52 | S101: 285 | T101: 1.07 | U101: 120.93 | V101: 281 | W101: 1.46 | X101: 160.19 | Y101: 169 | Z101: 1.32 | AA101: 87.78 | AB101: 164 | AC101: 1.06 | AD101: 127.78 | AE101: 236 | AF101: 1.62 | AG101: 112.61 | AH101: 239 | AI101: 1.48 | AJ101: 99.17 | AK101: 246 | AL101: 1.84 | AM101: 158.95 | AN101: 109 | AO101: 1.71 | AP101: 147.73
C102: 남 | D102: 1324 | E102: 1.5 | G102: 110 | H102: 1.47 | J102: 53 | K102: 1.5 | M102: 88 | N102: 1.46 | P102: 113 | Q102: 1.44 | S102: 156 | T102: 1.18 | V102: 173 | W102: 1.73 | Y102: 79 | Z102: 1.32 | AB102: 92 | AC102: 1.22 | AE102: 125 | AF102: 1.66 | AH102: 119 | AI102: 1.44 | AK102: 151 | AL102: 2.11 | AN102: 65 | AO102: 1.86
C103: 여 | D103: 1022 | E103: 1.2 | G103: 80 | H103: 1.19 | J103: 28 | K103: 0.88 | M103: 61 | N103: 1.05 | P103: 84 | Q103: 1.05 | S103: 129 | T103: 0.95 | V103: 108 | W103: 1.17 | Y103: 90 | Z103: 1.33 | AB103: 72 | AC103: 0.91 | AE103: 111 | AF103: 1.57 | AH103: 120 | AI103: 1.52 | AK103: 95 | AL103: 1.52 | AN103: 44 | AO103: 1.52
B104: 31세 | C104: 계 | D104: 2097 | E104: 1.21 | F104: 127.69 | G104: 150 | H104: 1.05 | I104: 200 | J104: 78 | K104: 1.16 | L104: 129.41 | M104: 115 | N104: 0.97 | O104: 109.09 | P104: 170 | Q104: 1.07 | R104: 150 | S104: 260 | T104: 0.97 | U104: 106.35 | V104: 255 | W104: 1.33 | X104: 150 | Y104: 157 | Z104: 1.23 | AA104: 84.71 | AB104: 150 | AC104: 0.97 | AD104: 117.39 | AE104: 221 | AF104: 1.51 | AG104: 116.67 | AH104: 246 | AI104: 1.52 | AJ104: 103.31 | AK104: 187 | AL104: 1.4 | AM104: 175 | AN104: 108 | AO104: 1.69 | AP104: 163.41
C105: 남 | D105: 1176 | E105: 1.33 | G105: 100 | H105: 1.34 | J105: 44 | K105: 1.24 | M105: 60 | N105: 0.99 | P105: 102 | Q105: 1.3 | S105: 134 | T105: 1.01 | V105: 153 | W105: 1.53 | Y105: 72 | Z105: 1.2 | AB105: 81 | AC105: 1.07 | AE105: 119 | AF105: 1.58 | AH105: 125 | AI105: 1.51 | AK105: 119 | AL105: 1.66 | AN105: 67 | AO105: 1.92
C106: 여 | D106: 921 | E106: 1.08 | G106: 50 | H106: 0.74 | J106: 34 | K106: 1.06 | M106: 55 | N106: 0.95 | P106: 68 | Q106: 0.85 | S106: 126 | T106: 0.93 | V106: 102 | W106: 1.1 | Y106: 85 | Z106: 1.25 | AB106: 69 | AC106: 0.87 | AE106: 102 | AF106: 1.44 | AH106: 121 | AI106: 1.53 | AK106: 68 | AL106: 1.09 | AN106: 41 | AO106: 1.41
B107: 32세 | C107: 계 | D107: 1997 | E107: 1.15 | F107: 134.94 | G107: 149 | H107: 1.05 | I107: 156.9 | J107: 86 | K107: 1.28 | L107: 207.14 | M107: 121 | N107: 1.02 | O107: 175 | P107: 142 | Q107: 0.9 | R107: 121.88 | S107: 227 | T107: 0.85 | U107: 116.19 | V107: 231 | W107: 1.2 | X107: 156.67 | Y107: 152 | Z107: 1.19 | AA107: 123.53 | AB107: 141 | AC107: 0.91 | AD107: 90.54 | AE107: 224 | AF107: 1.54 | AG107: 135.79 | AH107: 237 | AI107: 1.46 | AJ107: 88.1 | AK107: 174 | AL107: 1.3 | AM107: 190 | AN107: 113 | AO107: 1.77 | AP107: 197.37
C108: 남 | D108: 1147 | E108: 1.3 | G108: 91 | H108: 1.22 | J108: 58 | K108: 1.64 | M108: 77 | N108: 1.27 | P108: 78 | Q108: 0.99 | S108: 122 | T108: 0.92 | V108: 141 | W108: 1.41 | Y108: 84 | Z108: 1.4 | AB108: 67 | AC108: 0.89 | AE108: 129 | AF108: 1.71 | AH108: 111 | AI108: 1.34 | AK108: 114 | AL108: 1.59 | AN108: 75 | AO108: 2.15
C109: 여 | D109: 850 | E109: 1 | G109: 58 | H109: 0.86 | J109: 28 | K109: 0.88 | M109: 44 | N109: 0.76 | P109: 64 | Q109: 0.8 | S109: 105 | T109: 0.78 | V109: 90 | W109: 0.97 | Y109: 68 | Z109: 1 | AB109: 74 | AC109: 0.93 | AE109: 95 | AF109: 1.34 | AH109: 126 | AI109: 1.59 | AK109: 60 | AL109: 0.96 | AN109: 38 | AO109: 1.31
B110: 33세 | C110: 계 | D110: 1902 | E110: 1.1 | F110: 127.78 | G110: 140 | H110: 0.98 | I110: 141.38 | J110: 70 | K110: 1.04 | L110: 150 | M110: 97 | N110: 0.82 | O110: 169.44 | P110: 129 | Q110: 0.81 | R110: 118.64 | S110: 210 | T110: 0.79 | U110: 103.88 | V110: 224 | W110: 1.16 | X110: 143.48 | Y110: 164 | Z110: 1.28 | AA110: 102.47 | AB110: 129 | AC110: 0.83 | AD110: 98.46 | AE110: 231 | AF110: 1.58 | AG110: 145.74 | AH110: 239 | AI110: 1.48 | AJ110: 111.5 | AK110: 165 | AL110: 1.23 | AM110: 132.39 | AN110: 104 | AO110: 1.63 | AP110: 197.14
C111: 남 | D111: 1067 | E111: 1.21 | G111: 82 | H111: 1.09 | J111: 42 | K111: 1.19 | M111: 61 | N111: 1.01 | P111: 70 | Q111: 0.89 | S111: 107 | T111: 0.81 | V111: 132 | W111: 1.32 | Y111: 83 | Z111: 1.38 | AB111: 64 | AC111: 0.85 | AE111: 137 | AF111: 1.82 | AH111: 126 | AI111: 1.52 | AK111: 94 | AL111: 1.31 | AN111: 69 | AO111: 1.98
C112: 여 | D112: 835 | E112: 0.98 | G112: 58 | H112: 0.86 | J112: 28 | K112: 0.88 | M112: 36 | N112: 0.62 | P112: 59 | Q112: 0.74 | S112: 103 | T112: 0.76 | V112: 92 | W112: 0.99 | Y112: 81 | Z112: 1.19 | AB112: 65 | AC112: 0.82 | AE112: 94 | AF112: 1.33 | AH112: 113 | AI112: 1.43 | AK112: 71 | AL112: 1.14 | AN112: 35 | AO112: 1.21
B113: 34세 | C113: 계 | D113: 1916 | E113: 1.1 | F113: 127.28 | G113: 136 | H113: 0.96 | I113: 122.95 | J113: 73 | K113: 1.08 | L113: 135.48 | M113: 110 | N113: 0.93 | O113: 129.17 | P113: 145 | Q113: 0.92 | R113: 133.87 | S113: 256 | T113: 0.96 | U113: 103.17 | V113: 193 | W113: 1 | X113: 144.3 | Y113: 155 | Z113: 1.21 | AA113: 118.31 | AB113: 140 | AC113: 0.9 | AD113: 108.96 | AE113: 190 | AF113: 1.3 | AG113: 163.89 | AH113: 271 | AI113: 1.67 | AJ113: 99.26 | AK113: 150 | AL113: 1.12 | AM113: 206.12 | AN113: 97 | AO113: 1.52 | AP113: 136.59
C114: 남 | D114: 1073 | E114: 1.22 | G114: 75 | H114: 1 | J114: 42 | K114: 1.19 | M114: 62 | N114: 1.03 | P114: 83 | Q114: 1.06 | S114: 130 | T114: 0.98 | V114: 114 | W114: 1.14 | Y114: 84 | Z114: 1.4 | AB114: 73 | AC114: 0.97 | AE114: 118 | AF114: 1.57 | AH114: 135 | AI114: 1.63 | AK114: 101 | AL114: 1.41 | AN114: 56 | AO114: 1.6
C115: 여 | D115: 843 | E115: 0.99 | G115: 61 | H115: 0.91 | J115: 31 | K115: 0.97 | M115: 48 | N115: 0.83 | P115: 62 | Q115: 0.78 | S115: 126 | T115: 0.93 | V115: 79 | W115: 0.85 | Y115: 71 | Z115: 1.05 | AB115: 67 | AC115: 0.84 | AE115: 72 | AF115: 1.02 | AH115: 136 | AI115: 1.72 | AK115: 49 | AL115: 0.79 | AN115: 41 | AO115: 1.41
B116: 35세 | C116: 계 | D116: 1820 | E116: 1.05 | F116: 126.09 | G116: 140 | H116: 0.98 | I116: 125.81 | J116: 58 | K116: 0.86 | L116: 132 | M116: 105 | N116: 0.89 | O116: 105.88 | P116: 134 | Q116: 0.85 | R116: 131.03 | S116: 235 | T116: 0.88 | U116: 132.67 | V116: 186 | W116: 0.97 | X116: 151.35 | Y116: 151 | Z116: 1.18 | AA116: 109.72 | AB116: 134 | AC116: 0.86 | AD116: 100 | AE116: 183 | AF116: 1.25 | AG116: 157.75 | AH116: 268 | AI116: 1.66 | AJ116: 111.02 | AK116: 158 | AL116: 1.18 | AM116: 119.44 | AN116: 68 | AO116: 1.06 | AP116: 172
C117: 남 | D117: 1015 | E117: 1.15 | G117: 78 | H117: 1.04 | J117: 33 | K117: 0.93 | M117: 54 | N117: 0.89 | P117: 76 | Q117: 0.97 | S117: 134 | T117: 1.01 | V117: 112 | W117: 1.12 | Y117: 79 | Z117: 1.32 | AB117: 67 | AC117: 0.89 | AE117: 112 | AF117: 1.49 | AH117: 141 | AI117: 1.7 | AK117: 86 | AL117: 1.2 | AN117: 43 | AO117: 1.23
C118: 여 | D118: 805 | E118: 0.94 | G118: 62 | H118: 0.92 | J118: 25 | K118: 0.78 | M118: 51 | N118: 0.88 | P118: 58 | Q118: 0.73 | S118: 101 | T118: 0.75 | V118: 74 | W118: 0.8 | Y118: 72 | Z118: 1.06 | AB118: 67 | AC118: 0.84 | AE118: 71 | AF118: 1 | AH118: 127 | AI118: 1.61 | AK118: 72 | AL118: 1.15 | AN118: 25 | AO118: 0.86
B119: 36세 | C119: 계 | D119: 1902 | E119: 1.1 | F119: 115.65 | G119: 155 | H119: 1.09 | I119: 112.33 | J119: 60 | K119: 0.89 | L119: 62.16 | M119: 106 | N119: 0.89 | O119: 140.91 | P119: 152 | Q119: 0.96 | R119: 97.4 | S119: 226 | T119: 0.85 | U119: 103.6 | V119: 219 | W119: 1.14 | X119: 135.48 | Y119: 166 | Z119: 1.3 | AA119: 112.82 | AB119: 118 | AC119: 0.76 | AD119: 151.06 | AE119: 174 | AF119: 1.19 | AG119: 100 | AH119: 291 | AI119: 1.8 | AJ119: 107.86 | AK119: 149 | AL119: 1.11 | AM119: 148.33 | AN119: 86 | AO119: 1.35 | AP119: 145.71
C120: 남 | D120: 1020 | E120: 1.16 | G120: 82 | H120: 1.09 | J120: 23 | K120: 0.65 | M120: 62 | N120: 1.03 | P120: 75 | Q120: 0.95 | S120: 115 | T120: 0.87 | V120: 126 | W120: 1.26 | Y120: 88 | Z120: 1.47 | AB120: 71 | AC120: 0.94 | AE120: 87 | AF120: 1.16 | AH120: 151 | AI120: 1.82 | AK120: 89 | AL120: 1.24 | AN120: 51 | AO120: 1.46
C121: 여 | D121: 882 | E121: 1.03 | G121: 73 | H121: 1.08 | J121: 37 | K121: 1.16 | M121: 44 | N121: 0.76 | P121: 77 | Q121: 0.97 | S121: 111 | T121: 0.82 | V121: 93 | W121: 1 | Y121: 78 | Z121: 1.15 | AB121: 47 | AC121: 0.59 | AE121: 87 | AF121: 1.23 | AH121: 140 | AI121: 1.77 | AK121: 60 | AL121: 0.96 | AN121: 35 | AO121: 1.21
B122: 37세 | C122: 계 | D122: 1839 | E122: 1.06 | F122: 118.15 | G122: 123 | H122: 0.86 | I122: 127.78 | J122: 73 | K122: 1.08 | L122: 102.78 | M122: 102 | N122: 0.86 | O122: 142.86 | P122: 126 | Q122: 0.8 | R122: 137.74 | S122: 250 | T122: 0.94 | U122: 106.61 | V122: 181 | W122: 0.94 | X122: 120.73 | Y122: 145 | Z122: 1.13 | AA122: 98.63 | AB122: 126 | AC122: 0.81 | AD122: 125 | AE122: 176 | AF122: 1.21 | AG122: 120 | AH122: 294 | AI122: 1.82 | AJ122: 107.04 | AK122: 154 | AL122: 1.15 | AM122: 113.89 | AN122: 89 | AO122: 1.39 | AP122: 178.13
C123: 남 | D123: 996 | E123: 1.13 | G123: 69 | H123: 0.92 | J123: 37 | K123: 1.05 | M123: 60 | N123: 0.99 | P123: 73 | Q123: 0.93 | S123: 129 | T123: 0.98 | V123: 99 | W123: 0.99 | Y123: 72 | Z123: 1.2 | AB123: 70 | AC123: 0.93 | AE123: 96 | AF123: 1.28 | AH123: 152 | AI123: 1.84 | AK123: 82 | AL123: 1.15 | AN123: 57 | AO123: 1.63
C124: 여 | D124: 843 | E124: 0.99 | G124: 54 | H124: 0.8 | J124: 36 | K124: 1.13 | M124: 42 | N124: 0.72 | P124: 53 | Q124: 0.66 | S124: 121 | T124: 0.9 | V124: 82 | W124: 0.89 | Y124: 73 | Z124: 1.08 | AB124: 56 | AC124: 0.71 | AE124: 80 | AF124: 1.13 | AH124: 142 | AI124: 1.8 | AK124: 72 | AL124: 1.15 | AN124: 32 | AO124: 1.1
B125: 38세 | C125: 계 | D125: 1903 | E125: 1.1 | F125: 116.25 | G125: 128 | H125: 0.9 | I125: 120.69 | J125: 73 | K125: 1.08 | L125: 78.05 | M125: 119 | N125: 1 | O125: 101.69 | P125: 142 | Q125: 0.9 | R125: 132.79 | S125: 263 | T125: 0.98 | U125: 94.81 | V125: 182 | W125: 0.95 | X125: 136.36 | Y125: 142 | Z125: 1.11 | AA125: 121.88 | AB125: 138 | AC125: 0.89 | AD125: 81.58 | AE125: 170 | AF125: 1.17 | AG125: 150 | AH125: 294 | AI125: 1.82 | AJ125: 97.32 | AK125: 141 | AL125: 1.05 | AM125: 147.37 | AN125: 111 | AO125: 1.74 | AP125: 217.14
C126: 남 | D126: 1023 | E126: 1.16 | G126: 70 | H126: 0.93 | J126: 32 | K126: 0.9 | M126: 60 | N126: 0.99 | P126: 81 | Q126: 1.03 | S126: 128 | T126: 0.97 | V126: 105 | W126: 1.05 | Y126: 78 | Z126: 1.3 | AB126: 62 | AC126: 0.82 | AE126: 102 | AF126: 1.36 | AH126: 145 | AI126: 1.75 | AK126: 84 | AL126: 1.17 | AN126: 76 | AO126: 2.18
C127: 여 | D127: 880 | E127: 1.03 | G127: 58 | H127: 0.86 | J127: 41 | K127: 1.28 | M127: 59 | N127: 1.01 | P127: 61 | Q127: 0.76 | S127: 135 | T127: 1 | V127: 77 | W127: 0.83 | Y127: 64 | Z127: 0.94 | AB127: 76 | AC127: 0.96 | AE127: 68 | AF127: 0.96 | AH127: 149 | AI127: 1.88 | AK127: 57 | AL127: 0.91 | AN127: 35 | AO127: 1.21
B128: 39세 | C128: 계 | D128: 2086 | E128: 1.2 | F128: 120.04 | G128: 135 | H128: 0.95 | I128: 150 | J128: 76 | K128: 1.13 | L128: 111.11 | M128: 114 | N128: 0.96 | O128: 142.55 | P128: 178 | Q128: 1.12 | R128: 97.78 | S128: 330 | T128: 1.23 | U128: 101.22 | V128: 223 | W128: 1.16 | X128: 110.38 | Y128: 146 | Z128: 1.14 | AA128: 117.91 | AB128: 154 | AC128: 0.99 | AD128: 113.89 | AE128: 197 | AF128: 1.35 | AG128: 166.22 | AH128: 303 | AI128: 1.87 | AJ128: 121.17 | AK128: 141 | AL128: 1.05 | AM128: 110.45 | AN128: 89 | AO128: 1.39 | AP128: 161.76
C129: 남 | D129: 1138 | E129: 1.29 | G129: 81 | H129: 1.08 | J129: 40 | K129: 1.13 | M129: 67 | N129: 1.11 | P129: 88 | Q129: 1.12 | S129: 166 | T129: 1.26 | V129: 117 | W129: 1.17 | Y129: 79 | Z129: 1.32 | AB129: 82 | AC129: 1.08 | AE129: 123 | AF129: 1.63 | AH129: 166 | AI129: 2.01 | AK129: 74 | AL129: 1.03 | AN129: 55 | AO129: 1.58
C130: 여 | D130: 948 | E130: 1.11 | G130: 54 | H130: 0.8 | J130: 36 | K130: 1.13 | M130: 47 | N130: 0.81 | P130: 90 | Q130: 1.13 | S130: 164 | T130: 1.21 | V130: 106 | W130: 1.15 | Y130: 67 | Z130: 0.99 | AB130: 72 | AC130: 0.91 | AE130: 74 | AF130: 1.05 | AH130: 137 | AI130: 1.73 | AK130: 67 | AL130: 1.07 | AN130: 34 | AO130: 1.17
B131: 40세 | C131: 계 | D131: 2278 | E131: 1.31 | F131: 111.71 | G131: 162 | H131: 1.14 | I131: 149.23 | J131: 100 | K131: 1.48 | L131: 92.31 | M131: 147 | N131: 1.24 | O131: 119.4 | P131: 174 | Q131: 1.1 | R131: 125.97 | S131: 338 | T131: 1.26 | U131: 97.66 | V131: 235 | W131: 1.22 | X131: 107.96 | Y131: 145 | Z131: 1.13 | AA131: 90.79 | AB131: 191 | AC131: 1.23 | AD131: 107.61 | AE131: 196 | AF131: 1.34 | AG131: 110.75 | AH131: 328 | AI131: 2.03 | AJ131: 97.59 | AK131: 164 | AL131: 1.22 | AM131: 156.25 | AN131: 98 | AO131: 1.53 | AP131: 145
C132: 남 | D132: 1202 | E132: 1.36 | G132: 97 | H132: 1.3 | J132: 48 | K132: 1.36 | M132: 80 | N132: 1.32 | P132: 97 | Q132: 1.23 | S132: 167 | T132: 1.26 | V132: 122 | W132: 1.22 | Y132: 69 | Z132: 1.15 | AB132: 99 | AC132: 1.31 | AE132: 103 | AF132: 1.37 | AH132: 162 | AI132: 1.96 | AK132: 100 | AL132: 1.4 | AN132: 58 | AO132: 1.66
C133: 여 | D133: 1076 | E133: 1.26 | G133: 65 | H133: 0.97 | J133: 52 | K133: 1.63 | M133: 67 | N133: 1.15 | P133: 77 | Q133: 0.97 | S133: 171 | T133: 1.27 | V133: 113 | W133: 1.22 | Y133: 76 | Z133: 1.12 | AB133: 92 | AC133: 1.16 | AE133: 93 | AF133: 1.32 | AH133: 166 | AI133: 2.1 | AK133: 64 | AL133: 1.03 | AN133: 40 | AO133: 1.38
B134: 41세 | C134: 계 | D134: 2432 | E134: 1.4 | F134: 115.22 | G134: 150 | H134: 1.05 | I134: 150 | J134: 112 | K134: 1.66 | L134: 173.17 | M134: 153 | N134: 1.29 | O134: 104 | P134: 206 | Q134: 1.3 | R134: 98.08 | S134: 390 | T134: 1.46 | U134: 79.72 | V134: 241 | W134: 1.25 | X134: 148.45 | Y134: 177 | Z134: 1.39 | AA134: 103.45 | AB134: 173 | AC134: 1.12 | AD134: 103.53 | AE134: 202 | AF134: 1.38 | AG134: 129.55 | AH134: 321 | AI134: 1.98 | AJ134: 121.38 | AK134: 188 | AL134: 1.4 | AM134: 126.51 | AN134: 119 | AO134: 1.86 | AP134: 147.92
C135: 남 | D135: 1302 | E135: 1.48 | G135: 90 | H135: 1.2 | J135: 71 | K135: 2.01 | M135: 78 | N135: 1.29 | P135: 102 | Q135: 1.3 | S135: 173 | T135: 1.31 | V135: 144 | W135: 1.44 | Y135: 90 | Z135: 1.5 | AB135: 88 | AC135: 1.16 | AE135: 114 | AF135: 1.52 | AH135: 176 | AI135: 2.13 | AK135: 105 | AL135: 1.47 | AN135: 71 | AO135: 2.03
C136: 여 | D136: 1130 | E136: 1.32 | G136: 60 | H136: 0.89 | J136: 41 | K136: 1.28 | M136: 75 | N136: 1.29 | P136: 104 | Q136: 1.3 | S136: 217 | T136: 1.61 | V136: 97 | W136: 1.05 | Y136: 87 | Z136: 1.28 | AB136: 85 | AC136: 1.07 | AE136: 88 | AF136: 1.25 | AH136: 145 | AI136: 1.83 | AK136: 83 | AL136: 1.33 | AN136: 48 | AO136: 1.65
B137: 42세 | C137: 계 | D137: 2321 | E137: 1.34 | F137: 100.61 | G137: 158 | H137: 1.11 | I137: 110.67 | J137: 97 | K137: 1.44 | L137: 110.87 | M137: 135 | N137: 1.14 | O137: 98.53 | P137: 206 | Q137: 1.3 | R137: 88.99 | S137: 364 | T137: 1.36 | U137: 79.31 | V137: 240 | W137: 1.25 | X137: 103.39 | Y137: 169 | Z137: 1.32 | AA137: 89.89 | AB137: 187 | AC137: 1.21 | AD137: 96.84 | AE137: 163 | AF137: 1.12 | AG137: 103.75 | AH137: 312 | AI137: 1.93 | AJ137: 113.7 | AK137: 174 | AL137: 1.3 | AM137: 109.64 | AN137: 116 | AO137: 1.81 | AP137: 157.78
C138: 남 | D138: 1164 | E138: 1.32 | G138: 83 | H138: 1.11 | J138: 51 | K138: 1.44 | M138: 67 | N138: 1.11 | P138: 97 | Q138: 1.23 | S138: 161 | T138: 1.22 | V138: 122 | W138: 1.22 | Y138: 80 | Z138: 1.33 | AB138: 92 | AC138: 1.22 | AE138: 83 | AF138: 1.1 | AH138: 166 | AI138: 2.01 | AK138: 91 | AL138: 1.27 | AN138: 71 | AO138: 2.03
C139: 여 | D139: 1157 | E139: 1.36 | G139: 75 | H139: 1.11 | J139: 46 | K139: 1.44 | M139: 68 | N139: 1.17 | P139: 109 | Q139: 1.37 | S139: 203 | T139: 1.5 | V139: 118 | W139: 1.27 | Y139: 89 | Z139: 1.31 | AB139: 95 | AC139: 1.2 | AE139: 80 | AF139: 1.13 | AH139: 146 | AI139: 1.85 | AK139: 83 | AL139: 1.33 | AN139: 45 | AO139: 1.55
B140: 43세 | C140: 계 | D140: 2437 | E140: 1.4 | F140: 117.01 | G140: 184 | H140: 1.29 | I140: 121.69 | J140: 89 | K140: 1.32 | L140: 111.9 | M140: 126 | N140: 1.06 | O140: 121.05 | P140: 227 | Q140: 1.43 | R140: 100.88 | S140: 440 | T140: 1.65 | U140: 95.56 | V140: 273 | W140: 1.42 | X140: 125.62 | Y140: 168 | Z140: 1.31 | AA140: 143.48 | AB140: 198 | AC140: 1.28 | AD140: 100 | AE140: 168 | AF140: 1.15 | AG140: 118.18 | AH140: 277 | AI140: 1.71 | AJ140: 161.32 | AK140: 173 | AL140: 1.29 | AM140: 116.25 | AN140: 114 | AO140: 1.78 | AP140: 123.53
C141: 남 | D141: 1314 | E141: 1.49 | G141: 101 | H141: 1.35 | J141: 47 | K141: 1.33 | M141: 69 | N141: 1.14 | P141: 114 | Q141: 1.45 | S141: 215 | T141: 1.63 | V141: 152 | W141: 1.52 | Y141: 99 | Z141: 1.65 | AB141: 99 | AC141: 1.31 | AE141: 91 | AF141: 1.21 | AH141: 171 | AI141: 2.07 | AK141: 93 | AL141: 1.3 | AN141: 63 | AO141: 1.81
C142: 여 | D142: 1123 | E142: 1.32 | G142: 83 | H142: 1.23 | J142: 42 | K142: 1.31 | M142: 57 | N142: 0.98 | P142: 113 | Q142: 1.42 | S142: 225 | T142: 1.66 | V142: 121 | W142: 1.31 | Y142: 69 | Z142: 1.02 | AB142: 99 | AC142: 1.25 | AE142: 77 | AF142: 1.09 | AH142: 106 | AI142: 1.34 | AK142: 80 | AL142: 1.28 | AN142: 51 | AO142: 1.76
B143: 44세 | C143: 계 | D143: 2260 | E143: 1.3 | F143: 106.39 | G143: 149 | H143: 1.05 | I143: 112.86 | J143: 91 | K143: 1.35 | L143: 160 | M143: 141 | N143: 1.19 | O143: 120.31 | P143: 207 | Q143: 1.31 | R143: 111.22 | S143: 405 | T143: 1.52 | U143: 73.08 | V143: 260 | W143: 1.35 | X143: 114.88 | Y143: 133 | Z143: 1.04 | AA143: 107.81 | AB143: 158 | AC143: 1.02 | AD143: 105.19 | AE143: 188 | AF143: 1.29 | AG143: 106.59 | AH143: 243 | AI143: 1.5 | AJ143: 125 | AK143: 169 | AL143: 1.26 | AM143: 103.61 | AN143: 116 | AO143: 1.81 | AP143: 132
C144: 남 | D144: 1165 | E144: 1.32 | G144: 79 | H144: 1.05 | J144: 56 | K144: 1.58 | M144: 77 | N144: 1.27 | P144: 109 | Q144: 1.39 | S144: 171 | T144: 1.29 | V144: 139 | W144: 1.39 | Y144: 69 | Z144: 1.15 | AB144: 81 | AC144: 1.07 | AE144: 97 | AF144: 1.29 | AH144: 135 | AI144: 1.63 | AK144: 86 | AL144: 1.2 | AN144: 66 | AO144: 1.89
C145: 여 | D145: 1095 | E145: 1.28 | G145: 70 | H145: 1.04 | J145: 35 | K145: 1.09 | M145: 64 | N145: 1.1 | P145: 98 | Q145: 1.23 | S145: 234 | T145: 1.73 | V145: 121 | W145: 1.31 | Y145: 64 | Z145: 0.94 | AB145: 77 | AC145: 0.97 | AE145: 91 | AF145: 1.29 | AH145: 108 | AI145: 1.37 | AK145: 83 | AL145: 1.33 | AN145: 50 | AO145: 1.72
B146: 45세 | C146: 계 | D146: 2397 | E146: 1.38 | F146: 106.46 | G146: 180 | H146: 1.27 | I146: 150 | J146: 83 | K146: 1.23 | L146: 124.32 | M146: 142 | N146: 1.2 | O146: 144.83 | P146: 194 | Q146: 1.23 | R146: 92.08 | S146: 436 | T146: 1.63 | U146: 96.4 | V146: 258 | W146: 1.34 | X146: 106.4 | Y146: 158 | Z146: 1.24 | AA146: 88.1 | AB146: 196 | AC146: 1.26 | AD146: 70.43 | AE146: 190 | AF146: 1.3 | AG146: 104.3 | AH146: 270 | AI146: 1.67 | AJ146: 125 | AK146: 186 | AL146: 1.39 | AM146: 124.1 | AN146: 104 | AO146: 1.63 | AP146: 103.92
C147: 남 | D147: 1236 | E147: 1.4 | G147: 108 | H147: 1.44 | J147: 46 | K147: 1.3 | M147: 84 | N147: 1.39 | P147: 93 | Q147: 1.18 | S147: 214 | T147: 1.62 | V147: 133 | W147: 1.33 | Y147: 74 | Z147: 1.23 | AB147: 81 | AC147: 1.07 | AE147: 97 | AF147: 1.29 | AH147: 150 | AI147: 1.81 | AK147: 103 | AL147: 1.44 | AN147: 53 | AO147: 1.52
C148: 여 | D148: 1161 | E148: 1.36 | G148: 72 | H148: 1.07 | J148: 37 | K148: 1.16 | M148: 58 | N148: 1 | P148: 101 | Q148: 1.27 | S148: 222 | T148: 1.64 | V148: 125 | W148: 1.35 | Y148: 84 | Z148: 1.24 | AB148: 115 | AC148: 1.45 | AE148: 93 | AF148: 1.32 | AH148: 120 | AI148: 1.52 | AK148: 83 | AL148: 1.33 | AN148: 51 | AO148: 1.76
B149: 46세 | C149: 계 | D149: 2417 | E149: 1.39 | F149: 100.08 | G149: 175 | H149: 1.23 | I149: 133.33 | J149: 94 | K149: 1.4 | L149: 88 | M149: 134 | N149: 1.13 | O149: 112.7 | P149: 222 | Q149: 1.4 | R149: 109.43 | S149: 436 | T149: 1.63 | U149: 75.81 | V149: 266 | W149: 1.38 | X149: 116.26 | Y149: 137 | Z149: 1.07 | AA149: 85.14 | AB149: 228 | AC149: 1.47 | AD149: 101.77 | AE149: 187 | AF149: 1.28 | AG149: 78.1 | AH149: 227 | AI149: 1.4 | AJ149: 110.19 | AK149: 204 | AL149: 1.52 | AM149: 96.15 | AN149: 107 | AO149: 1.67 | AP149: 174.36
C150: 남 | D150: 1209 | E150: 1.37 | G150: 100 | H150: 1.34 | J150: 44 | K150: 1.24 | M150: 71 | N150: 1.17 | P150: 116 | Q150: 1.48 | S150: 188 | T150: 1.42 | V150: 143 | W150: 1.43 | Y150: 63 | Z150: 1.05 | AB150: 115 | AC150: 1.52 | AE150: 82 | AF150: 1.09 | AH150: 119 | AI150: 1.44 | AK150: 100 | AL150: 1.4 | AN150: 68 | AO150: 1.95
C151: 여 | D151: 1208 | E151: 1.42 | G151: 75 | H151: 1.11 | J151: 50 | K151: 1.56 | M151: 63 | N151: 1.08 | P151: 106 | Q151: 1.33 | S151: 248 | T151: 1.83 | V151: 123 | W151: 1.33 | Y151: 74 | Z151: 1.09 | AB151: 113 | AC151: 1.42 | AE151: 105 | AF151: 1.49 | AH151: 108 | AI151: 1.37 | AK151: 104 | AL151: 1.67 | AN151: 39 | AO151: 1.34
B152: 47세 | C152: 계 | D152: 2645 | E152: 1.52 | F152: 98.72 | G152: 208 | H152: 1.46 | I152: 101.94 | J152: 94 | K152: 1.4 | L152: 161.11 | M152: 185 | N152: 1.56 | O152: 125.61 | P152: 218 | Q152: 1.38 | R152: 109.62 | S152: 494 | T152: 1.85 | U152: 72.73 | V152: 320 | W152: 1.66 | X152: 93.94 | Y152: 174 | Z152: 1.36 | AA152: 112.2 | AB152: 206 | AC152: 1.33 | AD152: 64.8 | AE152: 235 | AF152: 1.61 | AG152: 111.71 | AH152: 232 | AI152: 1.43 | AJ152: 116.82 | AK152: 193 | AL152: 1.44 | AM152: 119.32 | AN152: 86 | AO152: 1.35 | AP152: 104.76
C153: 남 | D153: 1314 | E153: 1.49 | G153: 105 | H153: 1.4 | J153: 58 | K153: 1.64 | M153: 103 | N153: 1.7 | P153: 114 | Q153: 1.45 | S153: 208 | T153: 1.57 | V153: 155 | W153: 1.55 | Y153: 92 | Z153: 1.53 | AB153: 81 | AC153: 1.07 | AE153: 124 | AF153: 1.65 | AH153: 125 | AI153: 1.51 | AK153: 105 | AL153: 1.47 | AN153: 44 | AO153: 1.26
C154: 여 | D154: 1331 | E154: 1.56 | G154: 103 | H154: 1.53 | J154: 36 | K154: 1.13 | M154: 82 | N154: 1.41 | P154: 104 | Q154: 1.3 | S154: 286 | T154: 2.12 | V154: 165 | W154: 1.78 | Y154: 82 | Z154: 1.21 | AB154: 125 | AC154: 1.57 | AE154: 111 | AF154: 1.57 | AH154: 107 | AI154: 1.35 | AK154: 88 | AL154: 1.41 | AN154: 42 | AO154: 1.45
B155: 48세 | C155: 계 | D155: 3004 | E155: 1.73 | F155: 107.89 | G155: 197 | H155: 1.39 | I155: 166.22 | J155: 108 | K155: 1.6 | L155: 125 | M155: 190 | N155: 1.6 | O155: 86.27 | P155: 300 | Q155: 1.89 | R155: 88.68 | S155: 576 | T155: 2.16 | U155: 92 | V155: 340 | W155: 1.77 | X155: 134.48 | Y155: 181 | Z155: 1.42 | AA155: 103.37 | AB155: 269 | AC155: 1.74 | AD155: 74.68 | AE155: 238 | AF155: 1.63 | AG155: 128.85 | AH155: 244 | AI155: 1.51 | AJ155: 96.77 | AK155: 238 | AL155: 1.78 | AM155: 153.19 | AN155: 123 | AO155: 1.92 | AP155: 136.54
C156: 남 | D156: 1559 | E156: 1.77 | G156: 123 | H156: 1.64 | J156: 60 | K156: 1.7 | M156: 88 | N156: 1.46 | P156: 141 | Q156: 1.79 | S156: 276 | T156: 2.09 | V156: 195 | W156: 1.95 | Y156: 92 | Z156: 1.53 | AB156: 115 | AC156: 1.52 | AE156: 134 | AF156: 1.78 | AH156: 120 | AI156: 1.45 | AK156: 144 | AL156: 2.01 | AN156: 71 | AO156: 2.03
C157: 여 | D157: 1445 | E157: 1.69 | G157: 74 | H157: 1.1 | J157: 48 | K157: 1.5 | M157: 102 | N157: 1.75 | P157: 159 | Q157: 1.99 | S157: 300 | T157: 2.22 | V157: 145 | W157: 1.57 | Y157: 89 | Z157: 1.31 | AB157: 154 | AC157: 1.94 | AE157: 104 | AF157: 1.47 | AH157: 124 | AI157: 1.57 | AK157: 94 | AL157: 1.51 | AN157: 52 | AO157: 1.79
B158: 49세 | C158: 계 | D158: 3098 | E158: 1.79 | F158: 100 | G158: 221 | H158: 1.55 | I158: 140.22 | J158: 118 | K158: 1.75 | L158: 136 | M158: 185 | N158: 1.56 | O158: 105.56 | P158: 319 | Q158: 2.01 | R158: 100.63 | S158: 551 | T158: 2.06 | U158: 71.65 | V158: 361 | W158: 1.88 | X158: 122.84 | Y158: 215 | Z158: 1.68 | AA158: 82.2 | AB158: 267 | AC158: 1.72 | AD158: 76.82 | AE158: 217 | AF158: 1.49 | AG158: 104.72 | AH158: 256 | AI158: 1.58 | AJ158: 100 | AK158: 260 | AL158: 1.94 | AM158: 120.34 | AN158: 128 | AO158: 2 | AP158: 137.04
C159: 남 | D159: 1549 | E159: 1.76 | G159: 129 | H159: 1.72 | J159: 68 | K159: 1.92 | M159: 95 | N159: 1.57 | P159: 160 | Q159: 2.04 | S159: 230 | T159: 1.74 | V159: 199 | W159: 1.99 | Y159: 97 | Z159: 1.62 | AB159: 116 | AC159: 1.53 | AE159: 111 | AF159: 1.48 | AH159: 128 | AI159: 1.55 | AK159: 142 | AL159: 1.98 | AN159: 74 | AO159: 2.12
C160: 여 | D160: 1549 | E160: 1.82 | G160: 92 | H160: 1.37 | J160: 50 | K160: 1.56 | M160: 90 | N160: 1.55 | P160: 159 | Q160: 1.99 | S160: 321 | T160: 2.38 | V160: 162 | W160: 1.75 | Y160: 118 | Z160: 1.74 | AB160: 151 | AC160: 1.9 | AE160: 106 | AF160: 1.5 | AH160: 128 | AI160: 1.62 | AK160: 118 | AL160: 1.89 | AN160: 54 | AO160: 1.86
B161: 50세 | C161: 계 | D161: 2992 | E161: 1.72 | F161: 101.89 | G161: 222 | H161: 1.56 | I161: 141.3 | J161: 125 | K161: 1.86 | L161: 140.38 | M161: 201 | N161: 1.69 | O161: 120.88 | P161: 281 | Q161: 1.77 | R161: 88.59 | S161: 585 | T161: 2.19 | U161: 80.56 | V161: 335 | W161: 1.74 | X161: 127.89 | Y161: 168 | Z161: 1.31 | AA161: 68 | AB161: 254 | AC161: 1.64 | AD161: 71.62 | AE161: 224 | AF161: 1.54 | AG161: 130.93 | AH161: 257 | AI161: 1.59 | AJ161: 87.59 | AK161: 237 | AL161: 1.77 | AM161: 146.88 | AN161: 103 | AO161: 1.61 | AP161: 110.2
C162: 남 | D162: 1510 | E162: 1.71 | G162: 130 | H162: 1.74 | J162: 73 | K162: 2.06 | M162: 110 | N162: 1.82 | P162: 132 | Q162: 1.68 | S162: 261 | T162: 1.98 | V162: 188 | W162: 1.88 | Y162: 68 | Z162: 1.13 | AB162: 106 | AC162: 1.4 | AE162: 127 | AF162: 1.69 | AH162: 120 | AI162: 1.45 | AK162: 141 | AL162: 1.97 | AN162: 54 | AO162: 1.55
C163: 여 | D163: 1482 | E163: 1.74 | G163: 92 | H163: 1.37 | J163: 52 | K163: 1.63 | M163: 91 | N163: 1.57 | P163: 149 | Q163: 1.87 | S163: 324 | T163: 2.4 | V163: 147 | W163: 1.59 | Y163: 100 | Z163: 1.47 | AB163: 148 | AC163: 1.86 | AE163: 97 | AF163: 1.37 | AH163: 137 | AI163: 1.73 | AK163: 96 | AL163: 1.54 | AN163: 49 | AO163: 1.69
B164: 51세 | C164: 계 | D164: 3483 | E164: 2.01 | F164: 97.9 | G164: 228 | H164: 1.6 | I164: 123.53 | J164: 136 | K164: 2.02 | L164: 122.95 | M164: 229 | N164: 1.93 | O164: 99.13 | P164: 334 | Q164: 2.11 | R164: 85.56 | S164: 675 | T164: 2.53 | U164: 84.43 | V164: 402 | W164: 2.09 | X164: 110.47 | Y164: 243 | Z164: 1.9 | AA164: 68.75 | AB164: 307 | AC164: 1.98 | AD164: 91.88 | AE164: 271 | AF164: 1.86 | AG164: 93.57 | AH164: 268 | AI164: 1.66 | AJ164: 101.5 | AK164: 253 | AL164: 1.89 | AM164: 143.27 | AN164: 137 | AO164: 2.14 | AP164: 114.06
C165: 남 | D165: 1723 | E165: 1.96 | G165: 126 | H165: 1.68 | J165: 75 | K165: 2.12 | M165: 114 | N165: 1.89 | P165: 154 | Q165: 1.96 | S165: 309 | T165: 2.34 | V165: 211 | W165: 2.11 | Y165: 99 | Z165: 1.65 | AB165: 147 | AC165: 1.94 | AE165: 131 | AF165: 1.74 | AH165: 135 | AI165: 1.63 | AK165: 149 | AL165: 2.08 | AN165: 73 | AO165: 2.09
C166: 여 | D166: 1760 | E166: 2.06 | G166: 102 | H166: 1.51 | J166: 61 | K166: 1.91 | M166: 115 | N166: 1.98 | P166: 180 | Q166: 2.26 | S166: 366 | T166: 2.71 | V166: 191 | W166: 2.06 | Y166: 144 | Z166: 2.12 | AB166: 160 | AC166: 2.01 | AE166: 140 | AF166: 1.98 | AH166: 133 | AI166: 1.68 | AK166: 104 | AL166: 1.67 | AN166: 64 | AO166: 2.21
B167: 52세 | C167: 계 | D167: 3483 | E167: 2.01 | F167: 104.88 | G167: 232 | H167: 1.63 | I167: 160.67 | J167: 143 | K167: 2.12 | L167: 134.43 | M167: 213 | N167: 1.8 | O167: 108.82 | P167: 350 | Q167: 2.21 | R167: 118.75 | S167: 644 | T167: 2.41 | U167: 97.55 | V167: 372 | W167: 1.93 | X167: 124.1 | Y167: 264 | Z167: 2.07 | AA167: 69.23 | AB167: 333 | AC167: 2.15 | AD167: 87.08 | AE167: 271 | AF167: 1.86 | AG167: 97.81 | AH167: 272 | AI167: 1.68 | AJ167: 102.99 | AK167: 258 | AL167: 1.93 | AM167: 103.15 | AN167: 131 | AO167: 2.05 | AP167: 104.69
C168: 남 | D168: 1783 | E168: 2.02 | G168: 143 | H168: 1.91 | J168: 82 | K168: 2.32 | M168: 111 | N168: 1.84 | P168: 190 | Q168: 2.42 | S168: 318 | T168: 2.41 | V168: 206 | W168: 2.06 | Y168: 108 | Z168: 1.8 | AB168: 155 | AC168: 2.05 | AE168: 134 | AF168: 1.78 | AH168: 138 | AI168: 1.67 | AK168: 131 | AL168: 1.83 | AN168: 67 | AO168: 1.92
C169: 여 | D169: 1700 | E169: 1.99 | G169: 89 | H169: 1.32 | J169: 61 | K169: 1.91 | M169: 102 | N169: 1.75 | P169: 160 | Q169: 2.01 | S169: 326 | T169: 2.41 | V169: 166 | W169: 1.79 | Y169: 156 | Z169: 2.3 | AB169: 178 | AC169: 2.24 | AE169: 137 | AF169: 1.94 | AH169: 134 | AI169: 1.69 | AK169: 127 | AL169: 2.03 | AN169: 64 | AO169: 2.21
B170: 53세 | C170: 계 | D170: 3702 | E170: 2.13 | F170: 104.76 | G170: 275 | H170: 1.93 | I170: 159.43 | J170: 144 | K170: 2.14 | L170: 128.57 | M170: 257 | N170: 2.17 | O170: 119.66 | P170: 365 | Q170: 2.31 | R170: 92.11 | S170: 619 | T170: 2.32 | U170: 95.89 | V170: 407 | W170: 2.12 | X170: 107.65 | Y170: 259 | Z170: 2.03 | AA170: 73.83 | AB170: 344 | AC170: 2.22 | AD170: 104.76 | AE170: 325 | AF170: 2.23 | AG170: 95.78 | AH170: 289 | AI170: 1.79 | AJ170: 95.27 | AK170: 294 | AL170: 2.19 | AM170: 111.51 | AN170: 124 | AO170: 1.94 | AP170: 148
C171: 남 | D171: 1894 | E171: 2.15 | G171: 169 | H171: 2.26 | J171: 81 | K171: 2.29 | M171: 140 | N171: 2.32 | P171: 175 | Q171: 2.23 | S171: 303 | T171: 2.29 | V171: 211 | W171: 2.11 | Y171: 110 | Z171: 1.84 | AB171: 176 | AC171: 2.33 | AE171: 159 | AF171: 2.11 | AH171: 141 | AI171: 1.7 | AK171: 155 | AL171: 2.17 | AN171: 74 | AO171: 2.12
C172: 여 | D172: 1808 | E172: 2.12 | G172: 106 | H172: 1.57 | J172: 63 | K172: 1.97 | M172: 117 | N172: 2.01 | P172: 190 | Q172: 2.38 | S172: 316 | T172: 2.34 | V172: 196 | W172: 2.12 | Y172: 149 | Z172: 2.2 | AB172: 168 | AC172: 2.12 | AE172: 166 | AF172: 2.35 | AH172: 148 | AI172: 1.87 | AK172: 139 | AL172: 2.23 | AN172: 50 | AO172: 1.72
B173: 54세 | C173: 계 | D173: 3713 | E173: 2.14 | F173: 99.84 | G173: 306 | H173: 2.15 | I173: 104 | J173: 135 | K173: 2 | L173: 117.74 | M173: 262 | N173: 2.21 | O173: 85.82 | P173: 335 | Q173: 2.12 | R173: 91.43 | S173: 649 | T173: 2.43 | U173: 99.08 | V173: 356 | W173: 1.85 | X173: 118.4 | Y173: 292 | Z173: 2.28 | AA173: 79.14 | AB173: 343 | AC173: 2.21 | AD173: 88.46 | AE173: 319 | AF173: 2.19 | AG173: 129.5 | AH173: 280 | AI173: 1.73 | AJ173: 95.8 | AK173: 316 | AL173: 2.36 | AM173: 106.54 | AN173: 120 | AO173: 1.88 | AP173: 96.72
C174: 남 | D174: 1855 | E174: 2.1 | G174: 156 | H174: 2.08 | J174: 73 | K174: 2.06 | M174: 121 | N174: 2 | P174: 160 | Q174: 2.04 | S174: 323 | T174: 2.45 | V174: 193 | W174: 1.93 | Y174: 129 | Z174: 2.15 | AB174: 161 | AC174: 2.13 | AE174: 180 | AF174: 2.39 | AH174: 137 | AI174: 1.66 | AK174: 163 | AL174: 2.28 | AN174: 59 | AO174: 1.69
C175: 여 | D175: 1858 | E175: 2.18 | G175: 150 | H175: 2.23 | J175: 62 | K175: 1.94 | M175: 141 | N175: 2.43 | P175: 175 | Q175: 2.19 | S175: 326 | T175: 2.41 | V175: 163 | W175: 1.76 | Y175: 163 | Z175: 2.4 | AB175: 182 | AC175: 2.29 | AE175: 139 | AF175: 1.97 | AH175: 143 | AI175: 1.81 | AK175: 153 | AL175: 2.45 | AN175: 61 | AO175: 2.1
B176: 55세 | C176: 계 | D176: 3300 | E176: 1.9 | F176: 106.25 | G176: 245 | H176: 1.72 | I176: 142.57 | J176: 123 | K176: 1.83 | L176: 123.64 | M176: 211 | N176: 1.78 | O176: 124.47 | P176: 303 | Q176: 1.91 | R176: 104.73 | S176: 559 | T176: 2.09 | U176: 107.81 | V176: 370 | W176: 1.92 | X176: 102.19 | Y176: 277 | Z176: 2.17 | AA176: 103.68 | AB176: 306 | AC176: 1.97 | AD176: 83.23 | AE176: 265 | AF176: 1.82 | AG176: 97.76 | AH176: 275 | AI176: 1.7 | AJ176: 83.33 | AK176: 259 | AL176: 1.93 | AM176: 127.19 | AN176: 107 | AO176: 1.67 | AP176: 118.37
C177: 남 | D177: 1700 | E177: 1.93 | G177: 144 | H177: 1.92 | J177: 68 | K177: 1.92 | M177: 117 | N177: 1.94 | P177: 155 | Q177: 1.97 | S177: 290 | T177: 2.2 | V177: 187 | W177: 1.87 | Y177: 141 | Z177: 2.35 | AB177: 139 | AC177: 1.84 | AE177: 131 | AF177: 1.74 | AH177: 125 | AI177: 1.51 | AK177: 145 | AL177: 2.03 | AN177: 58 | AO177: 1.66
C178: 여 | D178: 1600 | E178: 1.87 | G178: 101 | H178: 1.5 | J178: 55 | K178: 1.72 | M178: 94 | N178: 1.62 | P178: 148 | Q178: 1.86 | S178: 269 | T178: 1.99 | V178: 183 | W178: 1.98 | Y178: 136 | Z178: 2 | AB178: 167 | AC178: 2.1 | AE178: 134 | AF178: 1.9 | AH178: 150 | AI178: 1.9 | AK178: 114 | AL178: 1.83 | AN178: 49 | AO178: 1.69
B179: 56세 | C179: 계 | D179: 3067 | E179: 1.77 | F179: 104.47 | G179: 228 | H179: 1.6 | I179: 93.22 | J179: 106 | K179: 1.57 | L179: 116.33 | M179: 198 | N179: 1.67 | O179: 120 | P179: 290 | Q179: 1.83 | R179: 92.05 | S179: 512 | T179: 1.92 | U179: 106.45 | V179: 350 | W179: 1.82 | X179: 108.33 | Y179: 238 | Z179: 1.86 | AA179: 80.3 | AB179: 299 | AC179: 1.93 | AD179: 88.05 | AE179: 262 | AF179: 1.8 | AG179: 109.6 | AH179: 251 | AI179: 1.55 | AJ179: 102.42 | AK179: 234 | AL179: 1.75 | AM179: 148.94 | AN179: 99 | AO179: 1.55 | AP179: 135.71
C180: 남 | D180: 1567 | E180: 1.78 | G180: 110 | H180: 1.47 | J180: 57 | K180: 1.61 | M180: 108 | N180: 1.79 | P180: 139 | Q180: 1.77 | S180: 264 | T180: 2 | V180: 182 | W180: 1.82 | Y180: 106 | Z180: 1.77 | AB180: 140 | AC180: 1.85 | AE180: 137 | AF180: 1.82 | AH180: 127 | AI180: 1.53 | AK180: 140 | AL180: 1.96 | AN180: 57 | AO180: 1.63
C181: 여 | D181: 1500 | E181: 1.76 | G181: 118 | H181: 1.75 | J181: 49 | K181: 1.53 | M181: 90 | N181: 1.55 | P181: 151 | Q181: 1.89 | S181: 248 | T181: 1.83 | V181: 168 | W181: 1.82 | Y181: 132 | Z181: 1.95 | AB181: 159 | AC181: 2 | AE181: 125 | AF181: 1.77 | AH181: 124 | AI181: 1.57 | AK181: 94 | AL181: 1.51 | AN181: 42 | AO181: 1.45
B182: 57세 | C182: 계 | D182: 3258 | E182: 1.88 | F182: 104.91 | G182: 297 | H182: 2.09 | I182: 109.15 | J182: 131 | K182: 1.94 | L182: 118.33 | M182: 228 | N182: 1.92 | O182: 109.17 | P182: 286 | Q182: 1.81 | R182: 74.39 | S182: 516 | T182: 1.93 | U182: 111.48 | V182: 369 | W182: 1.92 | X182: 97.33 | Y182: 257 | Z182: 2.01 | AA182: 108.94 | AB182: 296 | AC182: 1.91 | AD182: 96.03 | AE182: 266 | AF182: 1.82 | AG182: 107.81 | AH182: 248 | AI182: 1.53 | AJ182: 110.17 | AK182: 256 | AL182: 1.91 | AM182: 122.61 | AN182: 108 | AO182: 1.69 | AP182: 120.41
C183: 남 | D183: 1668 | E183: 1.89 | G183: 155 | H183: 2.07 | J183: 71 | K183: 2.01 | M183: 119 | N183: 1.97 | P183: 122 | Q183: 1.55 | S183: 272 | T183: 2.06 | V183: 182 | W183: 1.82 | Y183: 134 | Z183: 2.24 | AB183: 145 | AC183: 1.92 | AE183: 138 | AF183: 1.83 | AH183: 130 | AI183: 1.57 | AK183: 141 | AL183: 1.97 | AN183: 59 | AO183: 1.69
C184: 여 | D184: 1590 | E184: 1.86 | G184: 142 | H184: 2.11 | J184: 60 | K184: 1.88 | M184: 109 | N184: 1.87 | P184: 164 | Q184: 2.06 | S184: 244 | T184: 1.81 | V184: 187 | W184: 2.02 | Y184: 123 | Z184: 1.81 | AB184: 151 | AC184: 1.9 | AE184: 128 | AF184: 1.81 | AH184: 118 | AI184: 1.49 | AK184: 115 | AL184: 1.84 | AN184: 49 | AO184: 1.69
B185: 58세 | C185: 계 | D185: 2920 | E185: 1.68 | F185: 103.2 | G185: 263 | H185: 1.85 | I185: 82.64 | J185: 106 | K185: 1.57 | L185: 116.33 | M185: 213 | N185: 1.8 | O185: 139.33 | P185: 271 | Q185: 1.71 | R185: 131.62 | S185: 438 | T185: 1.64 | U185: 107.58 | V185: 354 | W185: 1.84 | X185: 103.45 | Y185: 189 | Z185: 1.48 | AA185: 81.73 | AB185: 307 | AC185: 1.98 | AD185: 72.47 | AE185: 245 | AF185: 1.68 | AG185: 113.04 | AH185: 215 | AI185: 1.33 | AJ185: 90.27 | AK185: 222 | AL185: 1.66 | AM185: 122 | AN185: 97 | AO185: 1.52 | AP185: 125.58
C186: 남 | D186: 1483 | E186: 1.68 | G186: 119 | H186: 1.59 | J186: 57 | K186: 1.61 | M186: 124 | N186: 2.05 | P186: 154 | Q186: 1.96 | S186: 227 | T186: 1.72 | V186: 180 | W186: 1.8 | Y186: 85 | Z186: 1.42 | AB186: 129 | AC186: 1.71 | AE186: 130 | AF186: 1.73 | AH186: 102 | AI186: 1.23 | AK186: 122 | AL186: 1.7 | AN186: 54 | AO186: 1.55
C187: 여 | D187: 1437 | E187: 1.68 | G187: 144 | H187: 2.14 | J187: 49 | K187: 1.53 | M187: 89 | N187: 1.53 | P187: 117 | Q187: 1.47 | S187: 211 | T187: 1.56 | V187: 174 | W187: 1.88 | Y187: 104 | Z187: 1.53 | AB187: 178 | AC187: 2.24 | AE187: 115 | AF187: 1.63 | AH187: 113 | AI187: 1.43 | AK187: 100 | AL187: 1.6 | AN187: 43 | AO187: 1.48
B188: 59세 | C188: 계 | D188: 2926 | E188: 1.69 | F188: 99.86 | G188: 252 | H188: 1.77 | I188: 104.88 | J188: 107 | K188: 1.59 | L188: 105.77 | M188: 220 | N188: 1.86 | O188: 105.61 | P188: 297 | Q188: 1.88 | R188: 87.97 | S188: 413 | T188: 1.55 | U188: 94.81 | V188: 355 | W188: 1.85 | X188: 90.86 | Y188: 240 | Z188: 1.88 | AA188: 95.12 | AB188: 296 | AC188: 1.91 | AD188: 85 | AE188: 222 | AF188: 1.52 | AG188: 113.46 | AH188: 205 | AI188: 1.27 | AJ188: 127.78 | AK188: 216 | AL188: 1.61 | AM188: 132.26 | AN188: 103 | AO188: 1.61 | AP188: 83.93
C189: 남 | D189: 1462 | E189: 1.66 | G189: 129 | H189: 1.72 | J189: 55 | K189: 1.55 | M189: 113 | N189: 1.87 | P189: 139 | Q189: 1.77 | S189: 201 | T189: 1.52 | V189: 169 | W189: 1.69 | Y189: 117 | Z189: 1.95 | AB189: 136 | AC189: 1.8 | AE189: 118 | AF189: 1.57 | AH189: 115 | AI189: 1.39 | AK189: 123 | AL189: 1.72 | AN189: 47 | AO189: 1.35
C190: 여 | D190: 1464 | E190: 1.72 | G190: 123 | H190: 1.83 | J190: 52 | K190: 1.63 | M190: 107 | N190: 1.84 | P190: 158 | Q190: 1.98 | S190: 212 | T190: 1.57 | V190: 186 | W190: 2.01 | Y190: 123 | Z190: 1.81 | AB190: 160 | AC190: 2.01 | AE190: 104 | AF190: 1.47 | AH190: 90 | AI190: 1.14 | AK190: 93 | AL190: 1.49 | AN190: 56 | AO190: 1.93
B191: 60세 | C191: 계 | D191: 3322 | E191: 1.92 | F191: 96.92 | G191: 279 | H191: 1.96 | I191: 84.77 | J191: 136 | K191: 2.02 | L191: 83.78 | M191: 260 | N191: 2.19 | O191: 104.72 | P191: 311 | Q191: 1.96 | R191: 86.23 | S191: 462 | T191: 1.73 | U191: 112.9 | V191: 369 | W191: 1.92 | X191: 91.19 | Y191: 267 | Z191: 2.09 | AA191: 100.75 | AB191: 369 | AC191: 2.38 | AD191: 89.23 | AE191: 270 | AF191: 1.85 | AG191: 98.53 | AH191: 247 | AI191: 1.53 | AJ191: 94.49 | AK191: 235 | AL191: 1.75 | AM191: 123.81 | AN191: 117 | AO191: 1.83 | AP191: 88.71
C192: 남 | D192: 1635 | E192: 1.86 | G192: 128 | H192: 1.71 | J192: 62 | K192: 1.75 | M192: 133 | N192: 2.2 | P192: 144 | Q192: 1.83 | S192: 245 | T192: 1.85 | V192: 176 | W192: 1.76 | Y192: 134 | Z192: 2.24 | AB192: 174 | AC192: 2.3 | AE192: 134 | AF192: 1.78 | AH192: 120 | AI192: 1.45 | AK192: 130 | AL192: 1.82 | AN192: 55 | AO192: 1.58
C193: 여 | D193: 1687 | E193: 1.98 | G193: 151 | H193: 2.24 | J193: 74 | K193: 2.31 | M193: 127 | N193: 2.18 | P193: 167 | Q193: 2.09 | S193: 217 | T193: 1.61 | V193: 193 | W193: 2.09 | Y193: 133 | Z193: 1.96 | AB193: 195 | AC193: 2.45 | AE193: 136 | AF193: 1.92 | AH193: 127 | AI193: 1.61 | AK193: 105 | AL193: 1.68 | AN193: 62 | AO193: 2.14
B194: 61세 | C194: 계 | D194: 3689 | E194: 2.13 | F194: 101.69 | G194: 353 | H194: 2.48 | I194: 115.24 | J194: 164 | K194: 2.43 | L194: 124.66 | M194: 284 | N194: 2.39 | O194: 76.4 | P194: 353 | Q194: 2.23 | R194: 95.03 | S194: 502 | T194: 1.88 | U194: 113.62 | V194: 416 | W194: 2.16 | X194: 96.23 | Y194: 266 | Z194: 2.08 | AA194: 100 | AB194: 364 | AC194: 2.35 | AD194: 94.65 | AE194: 315 | AF194: 2.16 | AG194: 108.61 | AH194: 291 | AI194: 1.8 | AJ194: 95.3 | AK194: 268 | AL194: 2 | AM194: 106.15 | AN194: 113 | AO194: 1.77 | AP194: 113.21
C195: 남 | D195: 1860 | E195: 2.11 | G195: 189 | H195: 2.52 | J195: 91 | K195: 2.57 | M195: 123 | N195: 2.03 | P195: 172 | Q195: 2.19 | S195: 267 | T195: 2.02 | V195: 204 | W195: 2.04 | Y195: 133 | Z195: 2.22 | AB195: 177 | AC195: 2.34 | AE195: 164 | AF195: 2.18 | AH195: 142 | AI195: 1.72 | AK195: 138 | AL195: 1.93 | AN195: 60 | AO195: 1.72
C196: 여 | D196: 1829 | E196: 2.14 | G196: 164 | H196: 2.44 | J196: 73 | K196: 2.28 | M196: 161 | N196: 2.77 | P196: 181 | Q196: 2.27 | S196: 235 | T196: 1.74 | V196: 212 | W196: 2.29 | Y196: 133 | Z196: 1.96 | AB196: 187 | AC196: 2.35 | AE196: 151 | AF196: 2.14 | AH196: 149 | AI196: 1.88 | AK196: 130 | AL196: 2.08 | AN196: 53 | AO196: 1.83
B197: 62세 | C197: 계 | D197: 3482 | E197: 2.01 | F197: 97.5 | G197: 346 | H197: 2.43 | I197: 109.7 | J197: 150 | K197: 2.23 | L197: 97.37 | M197: 310 | N197: 2.61 | O197: 80.23 | P197: 301 | Q197: 1.9 | R197: 76.02 | S197: 405 | T197: 1.52 | U197: 115.43 | V197: 400 | W197: 2.08 | X197: 120.99 | Y197: 257 | Z197: 2.01 | AA197: 76.03 | AB197: 414 | AC197: 2.67 | AD197: 89.91 | AE197: 280 | AF197: 1.92 | AG197: 95.8 | AH197: 293 | AI197: 1.81 | AJ197: 103.47 | AK197: 215 | AL197: 1.6 | AM197: 95.45 | AN197: 111 | AO197: 1.74 | AP197: 126.53
C198: 남 | D198: 1719 | E198: 1.95 | G198: 181 | H198: 2.42 | J198: 74 | K198: 2.09 | M198: 138 | N198: 2.28 | P198: 130 | Q198: 1.65 | S198: 217 | T198: 1.64 | V198: 219 | W198: 2.19 | Y198: 111 | Z198: 1.85 | AB198: 196 | AC198: 2.59 | AE198: 137 | AF198: 1.82 | AH198: 149 | AI198: 1.8 | AK198: 105 | AL198: 1.47 | AN198: 62 | AO198: 1.78
C199: 여 | D199: 1763 | E199: 2.07 | G199: 165 | H199: 2.45 | J199: 76 | K199: 2.38 | M199: 172 | N199: 2.96 | P199: 171 | Q199: 2.14 | S199: 188 | T199: 1.39 | V199: 181 | W199: 1.96 | Y199: 146 | Z199: 2.15 | AB199: 218 | AC199: 2.74 | AE199: 143 | AF199: 2.02 | AH199: 144 | AI199: 1.82 | AK199: 110 | AL199: 1.76 | AN199: 49 | AO199: 1.69
B200: 63세 | C200: 계 | D200: 2957 | E200: 1.7 | F200: 96.35 | G200: 293 | H200: 2.06 | I200: 103.47 | J200: 131 | K200: 1.94 | L200: 81.94 | M200: 237 | N200: 2 | O200: 104.31 | P200: 306 | Q200: 1.93 | R200: 90.06 | S200: 351 | T200: 1.31 | U200: 101.72 | V200: 373 | W200: 1.94 | X200: 92.27 | Y200: 219 | Z200: 1.71 | AA200: 73.81 | AB200: 315 | AC200: 2.03 | AD200: 98.11 | AE200: 242 | AF200: 1.66 | AG200: 106.84 | AH200: 201 | AI200: 1.24 | AJ200: 107.22 | AK200: 212 | AL200: 1.58 | AM200: 96.3 | AN200: 77 | AO200: 1.2 | AP200: 102.63
C201: 남 | D201: 1451 | E201: 1.65 | G201: 149 | H201: 1.99 | J201: 59 | K201: 1.67 | M201: 121 | N201: 2 | P201: 145 | Q201: 1.84 | S201: 177 | T201: 1.34 | V201: 179 | W201: 1.79 | Y201: 93 | Z201: 1.55 | AB201: 156 | AC201: 2.06 | AE201: 125 | AF201: 1.66 | AH201: 104 | AI201: 1.26 | AK201: 104 | AL201: 1.45 | AN201: 39 | AO201: 1.12
C202: 여 | D202: 1506 | E202: 1.76 | G202: 144 | H202: 2.14 | J202: 72 | K202: 2.25 | M202: 116 | N202: 2 | P202: 161 | Q202: 2.02 | S202: 174 | T202: 1.29 | V202: 194 | W202: 2.1 | Y202: 126 | Z202: 1.86 | AB202: 159 | AC202: 2 | AE202: 117 | AF202: 1.66 | AH202: 97 | AI202: 1.23 | AK202: 108 | AL202: 1.73 | AN202: 38 | AO202: 1.31
... 141 more rows

Sheet 인구 및 세대현황(대전광역시)
B2: 인구 및 세대현황
B3: 행정기관: | C3: 대전광역시
B4: 작성기준: | C4: 2022.10 현재 | H4: 출력일자 : 2022.11.01 | L4: (단위 : 명)
B5: 행정기관 | D5: 인 구 수 | G5: 구 성 비 | J5: 성비 | K5: 세대수 | L5: 세대당인구
D6: 계 | E6: 남 | F6: 여 | G6: 계 | H6: 남 | I6: 여
B7: 대전광역시 | D7: 1446863 | E7: 721745 | F7: 725118 | G7: 100 | H7: 49.88 | I7: 50.12 | J7: 99.53 | K7: 673098 | L7: 2.15
B8: 대덕구 | D8: 173465 | E8: 88127 | F8: 85338 | G8: 11.99 | H8: 6.09 | I8: 5.9 | J8: 103.27 | K8: 80472 | L8: 2.16
B9: 동구 | D9: 220286 | E9: 110918 | F9: 109368 | G9: 15.23 | H9: 7.67 | I9: 7.56 | J9: 101.42 | K9: 108670 | L9: 2.03
B10: 중구 | D10: 227934 | E10: 112058 | F10: 115876 | G10: 15.75 | H10: 7.74 | I10: 8.01 | J10: 96.71 | K10: 108078 | L10: 2.11
B11: 서구 | D11: 471112 | E11: 231541 | F11: 239571 | G11: 32.56 | H11: 16 | I11: 16.56 | J11: 96.65 | K11: 216618 | L11: 2.17
B12: 유성구 | D12: 354066 | E12: 179101 | F12: 174965 | G12: 24.47 | H12: 12.38 | I12: 12.09 | J12: 102.36 | K12: 159260 | L12: 2.22
